Workbook

Sheet PFP
A1: PROPOSTA FINANCEIRA DO PROJETO | K1: CODIGO:
K2: PFP
A3: NOME DA CONSULTORA:
A5: PROJETO: | G5: CONTRATANTE: | K5: BASE:
A6: Elaboração de Projeto Executivo do Canal Principal do PIS - Canal CP-500/2 | G6: CODEVASF (SEDE) | K6: 2024-08-01
A7: Base | B7: Cod2 | C7: Cod3 | D7: Código | E7: Categoria / Insumo | F7: Uni | G7: Qde | H7: CUD | I7: PU | J7: FatorK | K7: CT | L7: PT | M7: Encargos COMP E ADICIONAIS | N7: SOCIAIS | O7: TOTAIS | Q7: Encargos Comp e Adicionais
A8: SICRO | B8: MO3 | C8: P0 | D8: P8061 | E8: Engenheiro coordenador (P8061) | F8: mês | G8: ='CRO1_Ins-Pro'!D5 -> 5 | H8: =VLOOKUP(D8,MDO_DNIT!A5:Z115,4,0) -> 17866.69 | I8: =ROUND(J8*H8,2) -> 22990.86 | J8: ='PFP2.3_FatorKc'!E35 -> 1.2868 | K8: =ROUND(G8*H8,2) -> 89333.45 | L8: =ROUND(G8*I8,2) -> 114954.3 | M8: =O8-N8 -> 1026.89 | N8: 13451.98 | O8: 14478.87 | Q8: =VLOOKUP(D8,MDO_DNIT!A5:Z118,26,0) -> 1029.06
A9: SICRO | B9: MO2 | C9: P1 | D9: P8067 | E9: Engenheiro sênior (P8067) | F9: mês | G9: ='CRO1_Ins-Pro'!D6 -> 21 | H9: =VLOOKUP(D9,MDO_DNIT!A6:Z116,4,0) -> 15564.54 | I9: 23771.72 | J9: ='PFP2.2_FatorKb'!$E$35 -> 1.5273 | K9: 326855.34 | L9: 499206.12 | M9: 1030.19 | N9: 11533.74 | O9: 12563.93 | Q9: =VLOOKUP(D9,MDO_DNIT!A6:Z119,26,0) -> 1031.23
A10: SICRO | B10: MO1 | C10: P2 | D10: P8066 | E10: Engenheiro pleno (P8066) | F10: mês | G10: ='CRO1_Ins-Pro'!D7 -> 21 | H10: =VLOOKUP(D10,MDO_DNIT!A7:Z117,4,0) -> 12379.96 | I10: =ROUND(J10*H10,2) -> 26600.82 | J10: ='PFP2.1_FatorKa'!$E$36 -> 2.1487 | K10: =ROUND(G10*H10,2) -> 259979.16 | L10: 558617.22 | M10: 1030.19 | N10: 8980.37 | O10: 10010.56 | Q10: =VLOOKUP(D10,MDO_DNIT!A7:Z120,26,0) -> 1031.23
A11: SICRO | B11: MO1 | C11: P3 | D11: P8065 | E11: Engenheiro júnior (P8065) | F11: mês | G11: ='CRO1_Ins-Pro'!D8 -> 17 | H11: =VLOOKUP(D11,MDO_DNIT!A8:Z118,4,0) -> 12002 | I11: =ROUND(J11*H11,2) -> 25788.7 | J11: ='PFP2.1_FatorKa'!$E$36 -> 2.1487 | K11: =ROUND(G11*H11,2) -> 204034 | L11: 438407.9 | M11: 1030.19 | N11: 8799.37 | O11: 9829.56 | Q11: =VLOOKUP(D11,MDO_DNIT!A8:Z121,26,0) -> 1031.23
A12: SICRO | B12: MO1 | C12: T1 | D12: P8147 | E12: Técnico de projetos/obra (P8147) | F12: mês | G12: ='CRO1_Ins-Pro'!D9 -> 13 | H12: =VLOOKUP(D12,MDO_DNIT!A9:Z119,4,0) -> 3167.62 | I12: 6806.27 | J12: ='PFP2.1_FatorKa'!$E$36 -> 2.1487 | K12: 41179.06 | L12: 88481.51 | M12: 1070.18 | N12: 2450.48 | O12: 3520.66 | Q12: =VLOOKUP(D12,MDO_DNIT!A9:Z122,26,0) -> 1063.04
A13: SINAPI | B13: MO1 | C13: D | D13: 40807 | E13: Desenhista (40807) | F13: mês | G13: ='CRO1_Ins-Pro'!D10 -> 4 | H13: 4818.48 | I13: 5794.7 | J13: =PFP3_FatorKd!$E$17 -> 1.2026 | K13: 19273.92 | L13: 23178.8 | M13: 1070.18 | N13: 2450.48 | O13: 3520.66 | Q13: =Q14 -> 1068.62
A14: SICRO | B14: MO1 | C14: A1 | D14: P8135 | E14: Secretária (P8135) | F14: mês | G14: ='CRO1_Ins-Pro'!D11 -> 1 | H14: =VLOOKUP(D14,MDO_DNIT!A11:Z121,4,0) -> 2604.78 | I14: =ROUND(J14*H14,2) -> 5596.89 | J14: ='PFP2.1_FatorKa'!$E$36 -> 2.1487 | K14: =ROUND(G14*H14,2) -> 2604.78 | L14: =ROUND(G14*I14,2) -> 5596.89 | M14: 1068.97 | N14: 1887.43 | O14: 2956.4 | Q14: =VLOOKUP(D14,MDO_DNIT!A11:Z124,26,0) -> 1068.62
A15: SICRO | B15: EC | C15: ECA | E15: Encargos Comp. e Adicionais | F15: mês | G15: ='CRO1_Ins-Pro'!D12 -> 82 | H15: =AVERAGE(Q8:Q14) -> 1046.147143 | I15: 1258.1 | J15: =PFP3_FatorKd!$E$17 -> 1.2026 | K15: =ROUND(G15*H15,2) -> 85784.07 | L15: 103164.2
A16: PROP | B16: EC | C16: AT2 | E16: Auxilio Transporte Técnicos | F16: mês | G16: ='CRO1_Ins-Pro'!D13 -> 0 | H16: Já incluso* | I16: 0 | J16: =PFP3_FatorKd!$E$17 -> 1.2026 | K16: 0 | L16: 0
A17: PROP | B17: EC | C17: AT3 | E17: Auxilio Transporte Secretária | F17: mês | G17: ='CRO1_Ins-Pro'!D14 -> 0 | H17: Já Incluso* | I17: 0 | J17: =PFP3_FatorKd!$E$17 -> 1.2026 | K17: 0 | L17: 0
A18: CODE | B18: LO | C18: V1 | E18: Diárias | F18: dia | G18: ='CRO1_Ins-Pro'!D15 -> 125 | H18: ='CPU HOSPEDAGEM'!C19 -> 188.8712083 | I18: 227.14 | J18: =PFP3_FatorKd!$E$17 -> 1.2026 | K18: =ROUND(G18*H18,2) -> 23608.9 | L18: =ROUND(G18*I18,2) -> 28392.5
A19: CODE | B19: LO | C19: V2 | E19: Pick-up Cab.dupla 2.8 4x4 Diesel | F19: dia | G19: ='CRO1_Ins-Pro'!D16 -> 25 | H19: ='CPU-VEICULO_PickUp'!C11 -> 325.6268258 | I19: 391.6 | J19: =PFP3_FatorKd!$E$17 -> 1.2026 | K19: 8140.67 | L19: 9790
A20: PROP | B20: LO | C20: V3 | E20: Passagens Aéreas (ida e volta) | F20: un | G20: ='CRO1_Ins-Pro'!D17 -> 25 | H20: ='Cotação Voos'!C108 -> 1052.083333 | I20: 1265.24 | J20: =PFP3_FatorKd!$E$17 -> 1.2026 | K20: 26302.08 | L20: 31631
A21: CODE | B21: EM | C21: M1 | E21: Relatório Parcial | F21: un | G21: ='CRO1_Ins-Pro'!D18 -> 0 | H21: 51.3 | I21: 61.69 | J21: =PFP3_FatorKd!$E$17 -> 1.2026 | K21: 0 | L21: 0
A22: CODE | B22: EM | C22: M2 | E22: Relatório Final | F22: un | G22: ='CRO1_Ins-Pro'!D19 -> 7 | H22: 1474.85 | I22: 1773.65 | J22: =PFP3_FatorKd!$E$17 -> 1.2026 | K22: 10323.95 | L22: 12415.55
A23: CODE | B23: SU | C23: TOP | E23: Total Serviços Cartográficos | F23: un | G23: ='CRO1_Ins-Pro'!D20 -> 1 | H23: - | I23: ='PFP1.1_Topo'!H23 -> 76978.59479 | J23: - | K23: - | L23: 76978.59
A24: TOTAL DOS CUSTOS DIRETOS | I24: =SUM(K8:K23) -> 1097419.38
A25: TOTAL DOS ENCARGOS E DISPESAS DIVERSAS | I25: =I26-I24 -> 816416.61
A26: TOTAL DA PROPOSTA A PREÇO GLOBAL | I26: =SUM(L8:L22) -> 1913835.99
A27: TOTAL DA PROPOSTA A PREÇO UNITÁRIO | I27: =SUM(L23:O23) -> 76978.59
A28: TOTAL DA PROPOSTA | I28: =I26+I27 -> 1990814.58
A29: OBSERVAÇÃO:
A30: *Encargos Complementares e adicionais já incluem auxílio transporte
A31: Alocar os Insumos MO, com respectivo FatorK, dentro da categoria de vínculo contratual (celetista, autonomo, societario)
A32: Uni - unidade de medição do insumo;
A33: Qde - Quantidade do Insumo (não pode ocorrer alteração pela Licitante)
A34: CUD - Custo Unitário Direto do Insumo (sem encargos, taxas e impostos, valor não pode ser maior que o Orçado pela Codevasf)
A35: CT - Custo Total (sem encargos, taxas e impostos) - CT = Qde x CUD
A36: FatorK - Taxa de Ressarcimento de Despesas e Encargos (detalhar composição nas Planilhas "PFP2.1", "PFP2.2", "PFP3")
A37: PU - Preço Unitário do Insumo (incluído encargos, taxas e impostos) - PU = CUD x FatorK
A38: PT - Preço Total do Insumo (incluído encargos, taxas e impostos) - PT = Qde x PU
A39: P - Profissionais nível superior nas áreas de Engenharia, Química, Arquitetura, Agronomia e Veterinária, conforme disposições da Lei 4.950-A/66
A40: S - Profissionais de nível superior nas demais áreas de atuação, incluindo Arqueólogo, Biólogo, Geógrafo e Sociólogo
A41: T - Profissionais de nível médio técnico nas diversas áreas de atuação
A42: A - Profissionais de nível médio de apoio técnico-administrativo

Sheet PFP1.1_Topo
A1: SERVIÇOS TOPOGRÁFICOS/CARTOGRÁFICOS | H1: CODIGO:
H2: PFP-1.1
A3: NOME DA EMPRESA:
A5: PROJETO: | E5: CONTRATANTE: | H5: =PFP!K5 -> BASE:
A6: =PFP!A6 -> Elaboração de Projeto Executivo do Canal Principal do PIS - Canal CP-500/2 | E6: CODEVASF (SEDE) | H6: =PFP!K6 -> 2024-08-01 | J6: MEMÓRIA DE CALCULO DO BDI DE FORNECIMENTO
A7: Cod. | B7: Base | C7: Insumos | D7: Uni | E7: Qde | F7: Custo Unitário | G7: Custo Total | H7: Preço Total (PT)
A8: TP01 | B8: CODE | C8: Nivelamento Geométrico dos Eixos classe IIN | D8: km | E8: 10 | F8: 850.01 | G8: =ROUND(F8*E8,2) -> 8500.1 | H8: =(G8*$L$28)+G8 -> 9748.935729 | J8: ITEM | K8: DISCRIMINAÇÃO | L8: PERC. (%)
A9: EMBASA/COMPOSIÇÃO | B9: 31.90.19 | C9: Seções Tranversais | D9: km | E9: 40 | F9: =0.7*1000 -> 700 | G9: =ROUND(F9*E9,2) -> 28000 | H9: =(G9*$L$28)+G9 -> 32113.76341
A10: EMOP/COMPOSIÇÃO | B10: 01.016.0035-0 | C10: Poligonal Classe IIP | D10: km | E10: 10 | F10: 1366.27 | G10: 13662.7 | H10: 15670.02555
A11: CPOS/CDHU/COMPOSIÇÃO | B11: 01.20.921 | C11: Pontos GPS de dupla frequencia (L1/L2) | D11: un | E11: 6 | F11: 1257.09 | G11: 7542.54 | H11: 8650.690897 | J11: 1.00 | K11: Despesas Indiretas
A12: TP05 | B12: CODE | C12: Levantamento Ecobatimetrico malha 5x5 | D12: ha | E12: 2 | F12: 842.77 | G12: 1685.54 | H12: 1933.179742 | J12: A1 | K12: Seguro e Garantia | L12: 0.008
A13: TP06 | B13: CODE | C13: Levantamento Topobatimétrico | D13: km | E13: 2 | F13: 1460.42 | G13: 2920.84 | H13: 3349.970169 | J13: A2 | K13: Riscos e Imprevistos | L13: 0.0115
A14: TP07 | B14: CODE | C14: Cadastro Físico | D14: ha | F14: 14.79091034 | G14: 0 | H14: 0 | J14: A3 | K14: Despesas Financeiras | L14: 0.0105
A15: TP08 | B15: CODE | C15: Cadastro Agrícola | D15: ha | F15: 4.930303448 | G15: 0 | H15: 0 | J15: A4 | K15: Administração Central | L15: 0.022
A16: TP09 | B16: CODE | C16: Cadastro Jurídico | D16: ha | F16: 9.860606897 | G16: 0 | H16: 0 | J16: Total do Grupo A = | L16: =SUM(L12:L15) -> 0.052
A17: TP10 | B17: CODE | C17: Cadastro Socioeconomico | D17: ha | F17: 3.286868966 | G17: 0 | H17: 0 | J17: 2.00 | K17: Benefício
A18: ORSE/INSUMO | B18: 4369 | C18: Marco de Concreto (12x18x60cm) | D18: un | E18: 6 | F18: 73 | G18: 438 | H18: 502.3510134 | J18: B1 | K18: LUCRO | L18: 0.05
A19: EMBASA/INSUMO | B19: D059722497 | C19: Estaca Testemunha de Madeira (2x4x70cm) | D19: un | E19: 70 | F19: 0.55 | G19: 38.5 | H19: 44.1564247 | J19: Total do Grupo B = | L19: =L18 -> 0.05
A20: SEINFRA/INSUMO | B20: I1652 | C20: Piquetes de Madeira (2x2x20cm) | D20: un | E20: 500 | F20: 2.08 | G20: 1040 | H20: 1192.796927 | J20: 3.00 | K20: Impostos
A21: TP14 | B21: CODE | C21: Picada Manual p/ levantamento TP | D21: km | E21: 4 | F21: 243.14 | G21: 972.56 | H21: 1115.448634 | J21: C1 | K21: PIS / PASEP | L21: 0.0065
A22: TP15 | B22: CODE | C22: Picada c/ Trator de Esteira | D22: km | E22: 2 | F22: 1158.44 | G22: 2316.88 | H22: 2657.276292 | J22: C2 | K22: COFINS | L22: 0.03
A23: TOTAL SERVIÇOS TOPOGRÁFICOS | H23: =SUM(H8:H22) -> 76978.59479 | J23: C3 | K23: ISS | L23: 0
A24: OBSERVAÇÃO: | J24: Total do Grupo C = | L24: =SUM(L21:L23) -> 0.0365
A25: Uni - unidade de medição do insumo; | J25: Fórmula Para Cálculo do B.D.I
A26: Qde - Quantidade do Insumo (não pode ocorrer alteração pela Licitante) | J26: BDI =(((1+A4+A1+A2)*(1+A3)*(1+B))/(1-C))-1
A27: CU - Custo Unitário (composições padrão da Codevasf, já incluso o FatorK)
A28: PT - Preço Total (incluído encargos, taxas e impostos) - PT = Qde x PU | J28: Bonificação Sobre Despesas indiretas (B.D.I) = | L28: =(((1+L15+L12+L13)*(1+L14)*(1+L19))/(1-L24))-1 -> 0.146920122

Sheet PFP2.1_FatorKa
A1: DETALHAMENTO DOS ENCARGOS SOCIAIS: Ka | F1: CODIGO:
F2: PFP-2.1
A3: NOME DA CONSULTORA:
A5: PROJETO: | C5: CONTRATANTE: | F5: =PFP!K5 -> BASE:
A6: =PFP!A6 -> Elaboração de Projeto Executivo do Canal Principal do PIS - Canal CP-500/2 | C6: CODEVASF (SEDE) | F6: SINAPI/BA
A7: Cod | B7: DESCRIÇÃO | E7: % | F7: R$
A8: A | B8: ENCARGOS SOCIAIS BÁSICOS | E8: =ROUND(SUM(E9:E17),4) -> 0.368 | F8: =ROUND(E8*SUMIF(PFP!$B$8:$B$23,"MO1",PFP!$K$8:$K$23),2) -> 193962.1
A9: A1 | B9: INSS | E9: 0.2 | F9: =ROUND(E9*SUMIF(PFP!$B$8:$B$23,"MO1",PFP!$K$8:$K$23),2) -> 105414.18
A10: A2 | B10: SESI | E10: 0.015 | F10: =ROUND(E10*SUMIF(PFP!$B$8:$B$23,"MO1",PFP!$K$8:$K$23),2) -> 7906.06
A11: A3 | B11: SENAI | E11: 0.01 | F11: =ROUND(E11*SUMIF(PFP!$B$8:$B$23,"MO1",PFP!$K$8:$K$23),2) -> 5270.71
A12: A4 | B12: INCRA | E12: 0.002 | F12: =ROUND(E12*SUMIF(PFP!$B$8:$B$23,"MO1",PFP!$K$8:$K$23),2) -> 1054.14
A13: A5 | B13: SEBRAE | E13: 0.006 | F13: =ROUND(E13*SUMIF(PFP!$B$8:$B$23,"MO1",PFP!$K$8:$K$23),2) -> 3162.43
A14: A6 | B14: Salário Educação | E14: 0.025 | F14: =ROUND(E14*SUMIF(PFP!$B$8:$B$23,"MO1",PFP!$K$8:$K$23),2) -> 13176.77
A15: A7 | B15: Seguro Contra Acidentes de Trabalho | E15: 0.03 | F15: =ROUND(E15*SUMIF(PFP!$B$8:$B$23,"MO1",PFP!$K$8:$K$23),2) -> 15812.13
A16: A8 | B16: FGTS | E16: 0.08 | F16: =ROUND(E16*SUMIF(PFP!$B$8:$B$23,"MO1",PFP!$K$8:$K$23),2) -> 42165.67
A17: A9 | B17: SECONCI | E17: 0 | F17: =ROUND(E17*SUMIF(PFP!$B$8:$B$23,"MO1",PFP!$K$8:$K$23),2) -> 0
A18: B | B18: ENCARGOS SOCIAIS QUE RECEBEM INCIDÊNCIA DE "A" | E18: =ROUND(SUM(E19:E25),4) -> 0.1995 | F18: =ROUND(E18*SUMIF(PFP!$B$8:$B$23,"MO1",PFP!$K$8:$K$23),2) -> 105150.65
A19: B3 | B19: Auxílio Enfermidade | E19: 0.0064 | F19: =ROUND(E19*SUMIF(PFP!$B$8:$B$23,"MO1",PFP!$K$8:$K$23),2) -> 3373.25
A20: B4 | B20: 13º Salário | E20: 0.0833 | F20: =ROUND(E20*SUMIF(PFP!$B$8:$B$23,"MO1",PFP!$K$8:$K$23),2) -> 43905.01
A21: B5 | B21: Licença Paternidade | E21: 0.0004 | F21: =ROUND(E21*SUMIF(PFP!$B$8:$B$23,"MO1",PFP!$K$8:$K$23),2) -> 210.83
A22: B6 | B22: Faltas Justificadas | E22: 0.0056 | F22: =ROUND(E22*SUMIF(PFP!$B$8:$B$23,"MO1",PFP!$K$8:$K$23),2) -> 2951.6
A23: B8 | B23: Auxílio Acidente de Trabalho | E23: 0.0008 | F23: =ROUND(E23*SUMIF(PFP!$B$8:$B$23,"MO1",PFP!$K$8:$K$23),2) -> 421.66
A24: B9 | B24: Férias Gozadas | E24: 0.1027 | F24: =ROUND(E24*SUMIF(PFP!$B$8:$B$23,"MO1",PFP!$K$8:$K$23),2) -> 54130.18
A25: B10 | B25: Salário Maternidade | E25: 0.0003 | F25: =ROUND(E25*SUMIF(PFP!$B$8:$B$23,"MO1",PFP!$K$8:$K$23),2) -> 158.12
A26: C | B26: ENCARGOS SOCIAIS QUE NÃO RECEBEM INCIDÊNCIA DE "A" | E26: =ROUND(SUM(E27:E31),4) -> 0.0721 | F26: =ROUND(E26*SUMIF(PFP!$B$8:$B$23,"MO1",PFP!$K$8:$K$23),2) -> 38001.81
A27: C1 | B27: Aviso Prévio Indenizado | E27: 0.0413 | F27: =ROUND(E27*SUMIF(PFP!$B$8:$B$23,"MO1",PFP!$K$8:$K$23),2) -> 21768.03
A28: C2 | B28: Aviso Prévio Trabalhado | E28: 0.001 | F28: =ROUND(E28*SUMIF(PFP!$B$8:$B$23,"MO1",PFP!$K$8:$K$23),2) -> 527.07
A29: C3 | B29: Férias Indenizadas | E29: 0.0068 | F29: =ROUND(E29*SUMIF(PFP!$B$8:$B$23,"MO1",PFP!$K$8:$K$23),2) -> 3584.08
A30: C4 | B30: Depósito Rescisão Sem Justa Causa | E30: 0.0195 | F30: =ROUND(E30*SUMIF(PFP!$B$8:$B$23,"MO1",PFP!$K$8:$K$23),2) -> 10277.88
A31: C5 | B31: Indenização Adicional | E31: 0.0035 | F31: =ROUND(E31*SUMIF(PFP!$B$8:$B$23,"MO1",PFP!$K$8:$K$23),2) -> 1844.75
A32: D | B32: REINCIDÊNCIAS | E32: =ROUND(SUM(E33:E34),4) -> 0.0771 | F32: =ROUND(E32*SUMIF(PFP!$B$8:$B$23,"MO1",PFP!$K$8:$K$23),2) -> 40637.17
A33: D1 | B33: Reincidência de "A" sobre "B" | E33: 0.0734 | F33: =ROUND(E33*SUMIF(PFP!$B$8:$B$23,"MO1",PFP!$K$8:$K$23),2) -> 38687.01
A34: D2 | B34: Reincidência de "A" sobre Aviso Prévio Trabalhado e reincidência do FGTS sobre Aviso Prévio Indenizado | E34: 0.0037 | F34: =ROUND(E34*SUMIF(PFP!$B$8:$B$23,"MO1",PFP!$K$8:$K$23),2) -> 1950.16
A35: K1a | B35: ENCARGOS SOCIAIS | E35: =ROUND(E8+E18+E26+E32,4) -> 0.7167 | F35: =ROUND(E35*SUMIF(PFP!$B$8:$B$23,"MO1",PFP!$K$8:$K$23),2) -> 377751.73
A36: Ka | B36: TAXA DE RESSARCIMENTO DE DESPESAS E ENCARGOS SOBRE MO1 | E36: =ROUND((1+E35+PFP3_FatorKd!E13)*(1+PFP3_FatorKd!E12)*(1+PFP3_FatorKd!E8),4) -> 2.1487
A37: OBSERVAÇÃO: CELETISTAS E EQUIVALENTES
A38: 1 - DISCRIMINAR OS ENCARGOS SOCIAIS COM SEUS RESPECTIVOS PERCENTUAS TOTALIZANDO OS MESMOS.
A39: 2 - APLICAR O % TOTAL P/ CALCULAR OS E. SOCIAIS INCIDENTES NA MÃO-DE-OBRA CELETISTAS
A40: Ka - Taxa de Ressarcimento de Despesas e Encargos sobre a Mão de Obra CELETISTA (incide apenas no Insumo Codigo MO1)
A41: Ka = (1 + K1 + K2) x (1 + K3) x (1 + K4)

Sheet PFP2.2_FatorKb
A1: DETALHAMENTO DOS ENCARGOS SOCIAIS: Kb | F1: CODIGO:
F2: PFP-2.2
A3: NOME DA CONSULTORA:
A5: PROJETO: | C5: CONTRATANTE: | F5: ='PFP2.1_FatorKa'!F5 -> BASE:
A6: =PFP!A6 -> Elaboração de Projeto Executivo do Canal Principal do PIS - Canal CP-500/2 | C6: CODEVASF (SEDE) | F6: ='PFP2.1_FatorKa'!F6 -> SINAPI/BA
A7: Cod | B7: DESCRIÇÃO | E7: % | F7: R$
A8: A | B8: ENCARGOS SOCIAIS BÁSICOS | E8: =ROUND(SUM(E9:E16),4) -> 0.2 | F8: =ROUND(E8*SUMIF(PFP!$B$8:$B$23,"MO2",PFP!$K$8:$K$23),2) -> 65371.07
A9: A1 | B9: INSS | E9: 0.2 | F9: =ROUND(E9*SUMIF(PFP!$B$8:$B$23,"MO2",PFP!$K$8:$K$23),2) -> 65371.07
A10: A2 | B10: SESI | E10: 0 | F10: =ROUND(E10*SUMIF(PFP!$B$8:$B$23,"MO2",PFP!$K$8:$K$23),2) -> 0
A11: A3 | B11: SENAI | E11: 0 | F11: =ROUND(E11*SUMIF(PFP!$B$8:$B$23,"MO2",PFP!$K$8:$K$23),2) -> 0
A12: A4 | B12: INCRA | E12: 0 | F12: =ROUND(E12*SUMIF(PFP!$B$8:$B$23,"MO2",PFP!$K$8:$K$23),2) -> 0
A13: A5 | B13: SEBRAE | E13: 0 | F13: =ROUND(E13*SUMIF(PFP!$B$8:$B$23,"MO2",PFP!$K$8:$K$23),2) -> 0
A14: A6 | B14: Salário Educação | E14: 0 | F14: =ROUND(E14*SUMIF(PFP!$B$8:$B$23,"MO2",PFP!$K$8:$K$23),2) -> 0
A15: A7 | B15: Seguro Contra Acidentes de Trabalho | E15: 0 | F15: =ROUND(E15*SUMIF(PFP!$B$8:$B$23,"MO2",PFP!$K$8:$K$23),2) -> 0
A16: A8 | B16: FGTS | E16: 0 | F16: =ROUND(E16*SUMIF(PFP!$B$8:$B$23,"MO2",PFP!$K$8:$K$23),2) -> 0
A17: B | B17: ENCARGOS SOCIAIS QUE RECEBEM INCIDÊNCIA DE "A" | E17: =ROUND(SUM(E18:E24),4) -> 0 | F17: =ROUND(E17*SUMIF(PFP!$B$8:$B$23,"MO2",PFP!$K$8:$K$23),2) -> 0
A18: B3 | B18: Auxílio Enfermidade | E18: 0 | F18: =ROUND(E18*SUMIF(PFP!$B$8:$B$23,"MO2",PFP!$K$8:$K$23),2) -> 0
A19: B4 | B19: 13º Salário | E19: 0 | F19: =ROUND(E19*SUMIF(PFP!$B$8:$B$23,"MO2",PFP!$K$8:$K$23),2) -> 0
A20: B5 | B20: Licença Paternidade | E20: 0 | F20: =ROUND(E20*SUMIF(PFP!$B$8:$B$23,"MO2",PFP!$K$8:$K$23),2) -> 0
A21: B6 | B21: Faltas Justificadas | E21: 0 | F21: =ROUND(E21*SUMIF(PFP!$B$8:$B$23,"MO2",PFP!$K$8:$K$23),2) -> 0
A22: B8 | B22: Auxílio Acidente de Trabalho | E22: 0 | F22: =ROUND(E22*SUMIF(PFP!$B$8:$B$23,"MO2",PFP!$K$8:$K$23),2) -> 0
A23: B9 | B23: Férias Gozadas | E23: 0 | F23: =ROUND(E23*SUMIF(PFP!$B$8:$B$23,"MO2",PFP!$K$8:$K$23),2) -> 0
A24: B10 | B24: Salário Maternidade | E24: 0 | F24: =ROUND(E24*SUMIF(PFP!$B$8:$B$23,"MO2",PFP!$K$8:$K$23),2) -> 0
A25: C | B25: ENCARGOS SOCIAIS QUE NÃO RECEBEM INCIDÊNCIA DE "A" | E25: =ROUND(SUM(E26:E30),4) -> 0 | F25: =ROUND(E25*SUMIF(PFP!$B$8:$B$23,"MO2",PFP!$K$8:$K$23),2) -> 0
A26: C1 | B26: Aviso Prévio Indenizado | E26: 0 | F26: =ROUND(E26*SUMIF(PFP!$B$8:$B$23,"MO2",PFP!$K$8:$K$23),2) -> 0
A27: C2 | B27: Aviso Prévio Trabalhado | E27: 0 | F27: =ROUND(E27*SUMIF(PFP!$B$8:$B$23,"MO2",PFP!$K$8:$K$23),2) -> 0
A28: C3 | B28: Férias Indenizadas | E28: 0 | F28: =ROUND(E28*SUMIF(PFP!$B$8:$B$23,"MO2",PFP!$K$8:$K$23),2) -> 0
A29: C4 | B29: Depósito Rescisão Sem Justa Causa | E29: 0 | F29: =ROUND(E29*SUMIF(PFP!$B$8:$B$23,"MO2",PFP!$K$8:$K$23),2) -> 0
A30: C5 | B30: Indenização Adicional | E30: 0 | F30: =ROUND(E30*SUMIF(PFP!$B$8:$B$23,"MO2",PFP!$K$8:$K$23),2) -> 0
A31: D | B31: REINCIDÊNCIAS | E31: =ROUND(SUM(E32:E33),4) -> 0 | F31: =ROUND(E31*SUMIF(PFP!$B$8:$B$23,"MO2",PFP!$K$8:$K$23),2) -> 0
A32: D1 | B32: Reincidência de "A" sobre "B" | E32: =ROUND(E8*E17,4) -> 0 | F32: =ROUND(E32*SUMIF(PFP!$B$8:$B$23,"MO2",PFP!$K$8:$K$23),2) -> 0
A33: D2 | B33: Reincidência de "A" sobre Aviso Prévio Trabalhado e reincidência do FGTS sobre Aviso Prévio Indenizado | E33: =ROUND((E27*E8)+(E26*E16),4) -> 0 | F33: =ROUND(E33*SUMIF(PFP!$B$8:$B$23,"MO2",PFP!$K$8:$K$23),2) -> 0
A34: K1b | B34: ENCARGOS SOCIAIS | E34: =ROUND(E8+E17+E25+E31,4) -> 0.2 | F34: =ROUND(E34*SUMIF(PFP!$B$8:$B$23,"MO2",PFP!$K$8:$K$23),2) -> 65371.07
A35: Kb | B35: TAXA DE RESSARCIMENTO DE DESPESAS E ENCARGOS SOBRE MO2 | E35: =ROUND((1+E34+PFP3_FatorKd!E13)*(1+PFP3_FatorKd!E12)*(1+PFP3_FatorKd!E8),4) -> 1.5273
A36: OBSERVAÇÃO: AUTÔNOMOS E EQUIVALENTES
A37: 1 - DISCRIMINAR OS ENCARGOS SOCIAIS COM SEUS RESPECTIVOS PERCENTUAS TOTALIZANDO OS MESMOS.
A38: 2 - APLICAR O % TOTAL P/ CALCULAR OS E. SOCIAIS INCIDENTES NA MÃO-DE-OBRA AUTONÔMOS
A39: Kb - Taxa de Ressarcimento de Despesas e Encargos sobre a Mão de Obra AUTONÔMA (incide apenas no Insumo Codigo MO2)
A40: Kb = (1 + K1 + K2) x (1 + K3) x (1 + K4)

Sheet PFP2.3_FatorKc
A1: DETALHAMENTO DOS ENCARGOS SOCIAIS: Kc | F1: CODIGO:
F2: PFP-2.3
A3: NOME DA CONSULTORA:
A5: PROJETO: | C5: CONTRATANTE: | F5: ='PFP2.2_FatorKb'!F5 -> BASE:
A6: =PFP!A6 -> Elaboração de Projeto Executivo do Canal Principal do PIS - Canal CP-500/2 | C6: CODEVASF (SEDE) | F6: ='PFP2.2_FatorKb'!F6 -> SINAPI/BA
A7: Cod | B7: DESCRIÇÃO | E7: % | F7: R$
A8: A | B8: ENCARGOS SOCIAIS BÁSICOS | E8: =SUM(E9:E16) -> 0 | F8: =ROUND(E8*SUMIF(PFP!$B$8:$B$23,"MO3",PFP!$K$8:$K$23),2) -> 0
A9: A1 | B9: INSS | E9: 0 | F9: =ROUND(E9*SUMIF(PFP!$B$8:$B$23,"MO3",PFP!$K$8:$K$23),2) -> 0
A10: A2 | B10: SESI | E10: 0 | F10: =ROUND(E10*SUMIF(PFP!$B$8:$B$23,"MO3",PFP!$K$8:$K$23),2) -> 0
A11: A3 | B11: SENAI | E11: 0 | F11: =ROUND(E11*SUMIF(PFP!$B$8:$B$23,"MO3",PFP!$K$8:$K$23),2) -> 0
A12: A4 | B12: INCRA | E12: 0 | F12: =ROUND(E12*SUMIF(PFP!$B$8:$B$23,"MO3",PFP!$K$8:$K$23),2) -> 0
A13: A5 | B13: SEBRAE | E13: 0 | F13: =ROUND(E13*SUMIF(PFP!$B$8:$B$23,"MO3",PFP!$K$8:$K$23),2) -> 0
A14: A6 | B14: Salário Educação | E14: 0 | F14: =ROUND(E14*SUMIF(PFP!$B$8:$B$23,"MO3",PFP!$K$8:$K$23),2) -> 0
A15: A7 | B15: Seguro Contra Acidentes de Trabalho | E15: 0 | F15: =ROUND(E15*SUMIF(PFP!$B$8:$B$23,"MO3",PFP!$K$8:$K$23),2) -> 0
A16: A8 | B16: FGTS | E16: 0 | F16: =ROUND(E16*SUMIF(PFP!$B$8:$B$23,"MO3",PFP!$K$8:$K$23),2) -> 0
A17: B | B17: ENCARGOS SOCIAIS QUE RECEBEM INCIDÊNCIA DE "A" | E17: =ROUND(SUM(E18:E24),4) -> 0 | F17: =ROUND(E17*SUMIF(PFP!$B$8:$B$23,"MO3",PFP!$K$8:$K$23),2) -> 0
A18: B3 | B18: Auxílio Enfermidade | E18: 0 | F18: =ROUND(E18*SUMIF(PFP!$B$8:$B$23,"MO3",PFP!$K$8:$K$23),2) -> 0
A19: B4 | B19: 13º Salário | E19: 0 | F19: =ROUND(E19*SUMIF(PFP!$B$8:$B$23,"MO3",PFP!$K$8:$K$23),2) -> 0
A20: B5 | B20: Licença Paternidade | E20: 0 | F20: =ROUND(E20*SUMIF(PFP!$B$8:$B$23,"MO3",PFP!$K$8:$K$23),2) -> 0
A21: B6 | B21: Faltas Justificadas | E21: 0 | F21: =ROUND(E21*SUMIF(PFP!$B$8:$B$23,"MO3",PFP!$K$8:$K$23),2) -> 0
A22: B8 | B22: Auxílio Acidente de Trabalho | E22: 0 | F22: =ROUND(E22*SUMIF(PFP!$B$8:$B$23,"MO3",PFP!$K$8:$K$23),2) -> 0
A23: B9 | B23: Férias Gozadas | E23: 0 | F23: =ROUND(E23*SUMIF(PFP!$B$8:$B$23,"MO3",PFP!$K$8:$K$23),2) -> 0
A24: B10 | B24: Salário Maternidade | E24: 0 | F24: =ROUND(E24*SUMIF(PFP!$B$8:$B$23,"MO3",PFP!$K$8:$K$23),2) -> 0
A25: C | B25: ENCARGOS SOCIAIS QUE NÃO RECEBEM INCIDÊNCIA DE "A" | E25: =ROUND(SUM(E26:E30),4) -> 0 | F25: =ROUND(E25*SUMIF(PFP!$B$8:$B$23,"MO3",PFP!$K$8:$K$23),2) -> 0
A26: C1 | B26: Aviso Prévio Indenizado | E26: 0 | F26: =ROUND(E26*SUMIF(PFP!$B$8:$B$23,"MO3",PFP!$K$8:$K$23),2) -> 0
A27: C2 | B27: Aviso Prévio Trabalhado | E27: 0 | F27: =ROUND(E27*SUMIF(PFP!$B$8:$B$23,"MO3",PFP!$K$8:$K$23),2) -> 0
A28: C3 | B28: Férias Indenizadas | E28: 0 | F28: =ROUND(E28*SUMIF(PFP!$B$8:$B$23,"MO3",PFP!$K$8:$K$23),2) -> 0
A29: C4 | B29: Depósito Rescisão Sem Justa Causa | E29: 0 | F29: =ROUND(E29*SUMIF(PFP!$B$8:$B$23,"MO3",PFP!$K$8:$K$23),2) -> 0
A30: C5 | B30: Indenização Adicional | E30: 0 | F30: =ROUND(E30*SUMIF(PFP!$B$8:$B$23,"MO3",PFP!$K$8:$K$23),2) -> 0
A31: D | B31: REINCIDÊNCIAS | E31: =ROUND(SUM(E32:E33),4) -> 0 | F31: =ROUND(E31*SUMIF(PFP!$B$8:$B$23,"MO3",PFP!$K$8:$K$23),2) -> 0
A32: D1 | B32: Reincidência de "A" sobre "B" | E32: =ROUND(E8*E17,4) -> 0 | F32: =ROUND(E32*SUMIF(PFP!$B$8:$B$23,"MO3",PFP!$K$8:$K$23),2) -> 0
A33: D2 | B33: Reincidência de "A" sobre Aviso Prévio Trabalhado e reincidência do FGTS sobre Aviso Prévio Indenizado | E33: =ROUND(E8*E27,4)+ROUND(E26*E11,4) -> 0 | F33: =ROUND(E33*SUMIF(PFP!$B$8:$B$23,"MO3",PFP!$K$8:$K$23),2) -> 0
A34: K1c | B34: ENCARGOS SOCIAIS | E34: =ROUND(E8+E17+E25+E31,4) -> 0 | F34: =ROUND(E34*SUMIF(PFP!$B$8:$B$23,"MO3",PFP!$K$8:$K$23),2) -> 0
A35: Kc | B35: TAXA DE RESSARCIMENTO DE DESPESAS E ENCARGOS SOBRE MO3 | E35: =ROUND((1+E34+PFP3_FatorKd!E13)*(1+PFP3_FatorKd!E12)*(1+PFP3_FatorKd!E8),4) -> 1.2868
A36: OBSERVAÇÃO: SOCIETÁRIOS E EQUIVALENTES
A37: 1 - DISCRIMINAR OS ENCARGOS SOCIAIS COM SEUS RESPECTIVOS PERCENTUAS TOTALIZANDO OS MESMOS.
A38: 2 - APLICAR O % TOTAL P/ CALCULAR OS E. SOCIAIS INCIDENTES NA MÃO-DE-OBRA DE SOCIETÁRIOS
A39: Kc - Taxa de Ressarcimento de Despesas e Encargos sobre a Mão de Obra SOCIETÁRIA (incide apenas no Insumo Codigo MO3)
A40: Kc = (1 + K1 + K2) x (1 + K3) x (1 + K4)

Sheet PFP3_FatorKd
A1: DESPESAS FISCAIS E CUSTOS DIVERSOS: Kc | F1: CODIGO:
F2: PFP-3
A3: NOME DA CONSULTORA:
A5: PROJETO: | C5: CONTRATANTE: | F5: ='PFP2.3_FatorKc'!F5 -> BASE:
A6: =PFP!A6 -> Elaboração de Projeto Executivo do Canal Principal do PIS - Canal CP-500/2 | C6: CODEVASF (SEDE) | F6: ='PFP2.3_FatorKc'!F6 -> SINAPI/BA
A7: Cod | B7: DESCRIÇÃO1 | D7: % preço2 | E7: % custo4 | F7: R$
A8: K4 | B8: TRIBUTOS | D8: =ROUND(D9+D10+D11,4) -> 0.104 | E8: =ROUND(E9+E10+E11,4) -> 0.1161 | F8: =E8*SUM(SUMIF(PFP!$B$8:$B$23,"MO1",PFP!$K$8:$K$23)*(1+'PFP2.1_FatorKa'!$E$35)+SUMIF(PFP!$B$8:$B$23,"MO2",PFP!$K$8:$K$23)*(1+'PFP2.2_FatorKb'!$E$34)+SUMIF(PFP!$B$8:$B$23,"<>MO*",PFP!$K$8:$K$23)+$F$13+$F$12) -> 189802.9232
A9: K4.1 | B9: ISS | D9: 0.03 | E9: =ROUND((1/(1-$D$8))*D9,4) -> 0.0335 | F9: =E9*SUM(SUMIF(PFP!$B$8:$B$23,"MO1",PFP!$K$8:$K$23)*(1+'PFP2.1_FatorKa'!$E$35)+SUMIF(PFP!$B$8:$B$23,"MO2",PFP!$K$8:$K$23)*(1+'PFP2.2_FatorKb'!$E$34)+SUMIF(PFP!$B$8:$B$23,"<>MO*",PFP!$K$8:$K$23)+$F$13+$F$12) -> 54766.56268
A10: K4.2 | B10: PIS3 - aliquota efetiva aplicavel percentual-desconto | D10: =ROUND(1.65%*0.8,4) -> 0.0132 | E10: =ROUND((1/(1-$D$8))*D10,4) -> 0.0147 | F10: =E10*SUM(SUMIF(PFP!$B$8:$B$23,"MO1",PFP!$K$8:$K$23)*(1+'PFP2.1_FatorKa'!$E$35)+SUMIF(PFP!$B$8:$B$23,"MO2",PFP!$K$8:$K$23)*(1+'PFP2.2_FatorKb'!$E$34)+SUMIF(PFP!$B$8:$B$23,"<>MO*",PFP!$K$8:$K$23)+$F$13+$F$12) -> 24031.89467
A11: K4.3 | B11: COFINS3 - aliquota efetiva aplicavel percentual-desconto | D11: =ROUND(7.6%*0.8,4) -> 0.0608 | E11: =ROUND((1/(1-$D$8))*D11,4) -> 0.0679 | F11: =E11*SUM(SUMIF(PFP!$B$8:$B$23,"MO1",PFP!$K$8:$K$23)*(1+'PFP2.1_FatorKa'!$E$35)+SUMIF(PFP!$B$8:$B$23,"MO2",PFP!$K$8:$K$23)*(1+'PFP2.2_FatorKb'!$E$34)+SUMIF(PFP!$B$8:$B$23,"<>MO*",PFP!$K$8:$K$23)+$F$13+$F$12) -> 111004.4659
A12: K3 | B12: REMUNERAÇÃO DA EMPRESA (LUCRO) | E12: 0.0775 | F12: =E12*SUM(SUMIF(PFP!$B$8:$B$23,"MO1",PFP!$K$8:$K$23)*(1+'PFP2.1_FatorKa'!$E$35)+SUMIF(PFP!$B$8:$B$23,"MO2",PFP!$K$8:$K$23)*(1+'PFP2.2_FatorKb'!$E$34)+SUMIF(PFP!$B$8:$B$23,"<>MO*",PFP!$K$8:$K$23)+$F$13) -> 117585.8602
A13: K2 | B13: CUSTOS DA ADMINISTRAÇÃO CENTRAL | E13: =ROUND(SUM(E14:E16),4) -> 0.07 | F13: =ROUND(E13*SUMIF(PFP!$B$8:$B$23,"MO*",PFP!$K$8:$K$23),2) -> 66028.18
A14: K2.1 | B14: Custos da administração central da empresa (diretoria, pessoal técnico de apoio e pessoal administrativo não diretamente vinculado à prestação dos serviços) | E14: 0.04 | F14: =ROUND(E14*SUMIF(PFP!$B$8:$B$23,"MO*",PFP!$K$8:$K$23),2) -> 37730.39
A15: K2.2 | B15: Outras despesas que afetam o custo de produção como treinamento, biblioteca, programa de qualidade, programa de benefícios, auditoria interna e externa | E15: 0.02 | F15: =ROUND(E15*SUMIF(PFP!$B$8:$B$23,"MO*",PFP!$K$8:$K$23),2) -> 18865.19
A16: K2.3 | B16: Despesas fixas e variaveis com patrimônio, aluguéis, comunicação, manutenção e transporte não diretamente relacionados com o custo direto dos serviços | E16: 0.01 | F16: =ROUND(E16*SUMIF(PFP!$B$8:$B$23,"MO*",PFP!$K$8:$K$23),2) -> 9432.6
A17: Kd | B17: TAXA RESSARCIMENTO DE DESPESAS SOBRE CUSTOS DIVERSOS | E17: =ROUND((1+E12)*(1+E8),4) -> 1.2026
A18: NOME DO INFORMANTE: | E18: QUALIFICAÇÃO:
A20: ASSINATURA: | E20: DATA:
A22: Observação:
A23: 1 - RELACIONAR OS CUSTOS DE ADMINISTRAÇÃO COM RESPECTIVOS PERCENTUAIS INCIDENTES NA MÃO -DE-OBRA
A24: 1 - DISCRIMINAR OS TRIBUTOS QUE INCIDEM SOBRE OS CUSTOS DA PRESTAÇÃO DOS SERVIÇOS
A25: 2 - K4 = INDICAR % DE CADA TRIBUTO E A SOMA DOS MESMOS (ex: ISS 5% + PIS 1,65% + COFINS 7,60% = 14,25%)
A26: 3 - PIS e COFINS, Regime de Incidencia Acumulativa (0,65% e 3,00% - sem percentual de desconto) ou em Regime de Incidencia Não Acumulativa (1,65% e 7,60% - aplicável percentual de desconto) de acordo com a forma de apuração do lucro no IRPJ. APRESENTAR COMPROVANTES de aproveitamento de créditos tributários dos últimos 12 meses em caso de aplicação de "percentual de desconto".
A27: 4 - AS DESPESAS FISCAIS (K4) INCIDEM SOBRE O TOTAL DA FATURA E NÃO SOBRE OS CUSTOS INCORRIDOS,
A28: DEVENDO SER CALCULADO O K4' APLICANDO-SE A SEGUINTE FÓRMULA:
A29: K4' = { [ 1 / ( 1 - K4) ] - 1 } x 100
A30: =CONCATENATE(" K4' = { [ 1 / ( 1 - ",D8," ) ] - 1 } x 100") -> K4' = { [ 1 / ( 1 - 0,104 ) ] - 1 } x 100
A31: Kc - Taxa de Ressarcimento de Despesas sobre Custos Diversos (incide sobre os Insumos Codigo DP e EM)
A32: Kc = (1 + K3) x (1 + K4)
A33: K2 - Incide sobre o Custo Total (CT) da Mão de Obra (MO* = MO1 + MO2)
A34: K3 - Incide sobre o Custo Total (CT) Mão de Obra com encargos (MO1 x Ka ou MO2 x Kb), demais Custos (DP e EM), e Custos da Administração Central (K2)
A35: K4 - Incide sobre o Custo Total (CT) Mão de Obra com encargos (MO1 x Ka ou MO2 x Kb), demais Custos (DP e EM), e Custos da Administração Central (K2) e Lucro (K3)

Sheet CRO1_Ins-Pro
A1: INSUMOS POR ETAPA/PRODUTO
A3: Cod. | B3: Categoria / Insumo | C3: Uni | D3: Qde | E3: CUD | F3: PU | G3: FatorK | H3: E1.AC | I3: E2. EB | J3: E3. PE
G4: Meses | I4: ='CRO2_Ins-Mes'!E7 -> 1 | J4: ='CRO2_Ins-Mes'!E41 -> 4
A5: =PFP!C8 -> P0 | B5: =PFP!E8 -> Engenheiro coordenador (P8061) | C5: mês | D5: =SUM(H5:J5) -> 5 | E5: =PFP!H8 -> 17866.69 | F5: =PFP!I8 -> 22990.86 | G5: =PFP!J8 -> 1.2868 | H5: ='CRO2_Ins-Mes'!E17 -> 1 | I5: ='CRO2_Ins-Mes'!E29 -> 0 | J5: ='CRO2_Ins-Mes'!E41 -> 4
A6: =PFP!C9 -> P1 | B6: =PFP!E9 -> Engenheiro sênior (P8067) | C6: mês | D6: 21 | E6: =PFP!H9 -> 15564.54 | F6: =PFP!I9 -> 23771.72 | G6: =PFP!J9 -> 1.5273 | H6: ='CRO2_Ins-Mes'!E18 -> 1 | I6: ='CRO2_Ins-Mes'!E30 -> 0 | J6: ='CRO2_Ins-Mes'!E42 -> 20
A7: =PFP!C10 -> P2 | B7: =PFP!E10 -> Engenheiro pleno (P8066) | C7: mês | D7: 21 | E7: =PFP!H10 -> 12379.96 | F7: =PFP!I10 -> 26600.82 | G7: =PFP!J10 -> 2.1487 | H7: ='CRO2_Ins-Mes'!E19 -> 1 | I7: ='CRO2_Ins-Mes'!E31 -> 0 | J7: ='CRO2_Ins-Mes'!E43 -> 20
A8: =PFP!C11 -> P3 | B8: =PFP!E11 -> Engenheiro júnior (P8065) | C8: mês | D8: 17 | E8: =PFP!H11 -> 12002 | F8: =PFP!I11 -> 25788.7 | G8: =PFP!J11 -> 2.1487 | H8: ='CRO2_Ins-Mes'!E20 -> 1 | I8: ='CRO2_Ins-Mes'!E32 -> 0 | J8: ='CRO2_Ins-Mes'!E44 -> 16
A9: =PFP!C12 -> T1 | B9: =PFP!E12 -> Técnico de projetos/obra (P8147) | C9: mês | D9: 13 | E9: =PFP!H12 -> 3167.62 | F9: =PFP!I12 -> 6806.27 | G9: =PFP!J12 -> 2.1487 | H9: ='CRO2_Ins-Mes'!E21 -> 1 | I9: ='CRO2_Ins-Mes'!E33 -> 0 | J9: ='CRO2_Ins-Mes'!E45 -> 12
A10: =PFP!C13 -> D | B10: =PFP!E13 -> Desenhista (40807) | C10: mês | D10: 4 | E10: =PFP!H13 -> 4818.48 | F10: =PFP!I13 -> 5794.7 | G10: =PFP!J13 -> 1.2026 | H10: ='CRO2_Ins-Mes'!E22 -> 0 | I10: ='CRO2_Ins-Mes'!E34 -> 0 | J10: ='CRO2_Ins-Mes'!E46 -> 4
A11: =PFP!C14 -> A1 | B11: =PFP!E14 -> Secretária (P8135) | C11: mês | D11: 1 | E11: =PFP!H14 -> 2604.78 | F11: =PFP!I14 -> 5596.89 | G11: =PFP!J14 -> 2.1487 | H11: ='CRO2_Ins-Mes'!E23 -> 0 | I11: ='CRO2_Ins-Mes'!E35 -> 0 | J11: ='CRO2_Ins-Mes'!E4 -> 1
A12: =PFP!C15 -> ECA | B12: =PFP!E15 -> Encargos Comp. e Adicionais | C12: mês | D12: 82 | E12: =PFP!H15 -> 1046.147143 | F12: =PFP!I15 -> 1258.1 | G12: =PFP!J15 -> 1.2026 | H12: =SUM(H5:H11) -> 5 | I12: =SUM(I5:I11) -> 0 | J12: =SUM(J5:J11) -> 77
A13: =PFP!C16 -> AT2 | B13: =PFP!E16 -> Auxilio Transporte Técnicos | C13: mês | D13: 0 | E13: =PFP!H16 -> Já incluso* | F13: =PFP!I16 -> 0 | G13: =PFP!J16 -> 1.2026
A14: =PFP!C17 -> AT3 | B14: =PFP!E17 -> Auxilio Transporte Secretária | C14: mês | D14: 0 | E14: =PFP!H17 -> Já Incluso* | F14: =PFP!I17 -> 0 | G14: =PFP!J17 -> 1.2026
A15: =PFP!C18 -> V1 | B15: =PFP!E18 -> Diárias | C15: dia | D15: 125 | E15: =PFP!H18 -> 188.8712083 | F15: =PFP!I18 -> 227.14 | G15: =PFP!J18 -> 1.2026 | H15: ='CRO2_Ins-Mes'!E24 -> 25 | I15: ='CRO2_Ins-Mes'!E36 -> 0 | J15: ='CRO2_Ins-Mes'!E48 -> 100
A16: =PFP!C19 -> V2 | B16: =PFP!E19 -> Pick-up Cab.dupla 2.8 4x4 Diesel | C16: dia | D16: 25 | E16: =PFP!H19 -> 325.6268258 | F16: =PFP!I19 -> 391.6 | G16: =PFP!J19 -> 1.2026 | H16: ='CRO2_Ins-Mes'!E25 -> 5 | I16: ='CRO2_Ins-Mes'!E37 -> 0 | J16: ='CRO2_Ins-Mes'!E49 -> 20
A17: =PFP!C20 -> V3 | B17: =PFP!E20 -> Passagens Aéreas (ida e volta) | C17: um | D17: 25 | E17: =PFP!H20 -> 1052.083333 | F17: =PFP!I20 -> 1265.24 | G17: =PFP!J20 -> 1.2026 | H17: ='CRO2_Ins-Mes'!E26 -> 5 | I17: 0 | J17: ='CRO2_Ins-Mes'!E50 -> 20
A18: =PFP!C21 -> M1 | B18: =PFP!E21 -> Relatório Parcial | C18: un | D18: 0 | E18: =PFP!H21 -> 51.3 | F18: =PFP!I21 -> 61.69 | G18: =PFP!J21 -> 1.2026 | H18: 0 | I18: 0 | J18: 0
A19: =PFP!C22 -> M2 | B19: =PFP!E22 -> Relatório Final | C19: un | D19: 7 | E19: =PFP!H22 -> 1474.85 | F19: =PFP!I22 -> 1773.65 | G19: =PFP!J22 -> 1.2026 | H19: ='CRO2_Ins-Mes'!E27 -> 1 | I19: 0 | J19: ='CRO2_Ins-Mes'!E51 -> 6
A20: =PFP!C23 -> TOP | B20: =PFP!E23 -> Total Serviços Cartográficos | C20: un | D20: 1 | E20: =PFP!H23 -> - | F20: =PFP!I23 -> 76978.59479 | G20: =PFP!J23 -> - | I20: ='CRO2_Ins-Mes'!E39 -> 1
A21: TOTAL | B21: VALOR TOTAL POR PRODUTO | C21: R$ | D21: 1990814.585 | H21: =(H5*$F$5+H6*$F$6+H7*$F$7+H8*$F$8+H9*$F$9+H10*$F$10+H11*$F$11+H12*$F$12+H13*$F$13+H14*$F$14+$F$15*H15+$F$16*H16+$F$17*H17+H18*$F$18+H19*$F$19) -> 127985.22 | I21: =(I5*$F$5+I6*$F$6+I7*$F$7+I8*$F$8+I9*$F$9+I10*$F$10+I11*$F$11+I12*$F$12+I13*$F$13+I14*$F$14+$F$15*I15+$F$16*I16+$F$17*I17+I18*$F$18+I19*$F$19+F20*I20) -> 76978.59479 | J21: =(J5*$F$5+J6*$F$6+J7*$F$7+J8*$F$8+J9*$F$9+J10*$F$10+J11*$F$11+J12*$F$12+J13*$F$13+J14*$F$14+F15*J15+F16*J16+F17*J17+J18*$F$18+J19*$F$19) -> 1785850.77
C22: % | D22: =SUM(I22:J22) -> 0.93572 | H22: =ROUND(H21/$D$21,5) -> 0.06429 | I22: =ROUND(I21/$D$21,5) -> 0.03867 | J22: =ROUND(J21/$D$21,5) -> 0.89705
A85: OBSERVAÇÃO:
A86: P - Profissionais nível superior nas áreas de Engenharia, Química, Arquitetura, Agronomia e Veterinária, conforme disposições da Lei 4.950-A/66
A87: T - Profissionais de nível médio técnico nas diversas áreas de atuação
A88: A - Profissionais de nível médio de apoio técnico-administrativo

Sheet CRO2_Ins-Mes
A1: CRONOGRAMA SIMPLIFICADO
A3: Cod1 | B3: Cod2 | C3: Produtos | D3: Uni | E3: Qde | F3: 1 | G3: 2 | H3: 3 | I3: 4 | J3: 5 | K3: 6 | L3: 7 | M3: 8 | N3: 9
A4: 1 | B4: 1.1 | C4: Análise Crítica do Projeto Básico (AC) | D4: mês | E4: =SUM(F4:L4) -> 1 | F4: 1
A5: 1 | B5: 1 | C5: Análise Crítica do Projeto Básico (AC) | D5: mês | E5: 1 | F5: =SUBTOTAL(4,F4:F4) -> 1 | G5: 0 | H5: 0 | I5: 0 | J5: 0 | K5: 0 | L5: 0
A6: 2 | B6: 2.1 | C6: Serviços Topográficos/Cartográficos | D6: mês | E6: 1 | G6: 1
A7: 2 | B7: 2 | C7: Estudos Básicos (EB) | D7: mês | E7: 1 | F7: =SUBTOTAL(4,F6:F6) -> 0 | G7: 1 | H7: 0 | I7: 0 | J7: 0 | K7: 0 | L7: 0
A8: 3 | B8: 3.1 | C8: Projeto Terraplanagem e Urbanização, Viário e Drenagem | D8: mês | E8: 4 | H8: 1 | I8: 1 | J8: 1 | K8: 1
A9: 3 | B9: 3.2 | C9: Projeto Estrutural e Fundações | D9: mês | E9: 4 | H9: 1 | I9: 1 | J9: 1 | K9: 1
A10: 3 | B10: 3.3 | C10: Projeto Edificações e Elementos Civis | D10: mês | E10: 4 | H10: 1 | I10: 1 | J10: 1 | K10: 1
A11: 3 | B11: 3.4 | C11: Projeto Hidromecânico | D11: mês | E11: 4 | H11: 1 | I11: 1 | J11: 1 | K11: 1
A12: 3 | B12: 3.5 | C12: Projeto Elétrico, Automação e Controle | D12: mês | E12: 4 | H12: 1 | I12: 1 | J12: 1 | K12: 1
A13: 3 | B13: 3.6 | C13: Projeto Consolidado e Peças Complementares | D13: mês | E13: 4 | H13: 1 | I13: 1 | J13: 1 | K13: 1
A14: 3 | B14: 3 | C14: Projeto Executivo | D14: mês | E14: 4 | F14: =SUBTOTAL(4,F8:F13) -> 0 | G14: 0 | H14: 1 | I14: 1 | J14: 1 | K14: 1 | L14: 0
A15: Total | B15: Total | C15: Balanço Temporal | D15: mês | E15: 5 | F15: =SUBTOTAL(4,F6:F14) -> 0 | G15: 1 | H15: 1 | I15: 1 | J15: 1 | K15: 1 | L15: 0 | M15: 0 | N15: 0
A16: Cod1 | B16: Cod2 | C16: Insumos | D16: Uni | E16: Qde
A17: 1 | B17: =PFP!C8 -> P0 | C17: =PFP!E8 -> Engenheiro coordenador (P8061) | D17: =PFP!F8 -> mês | E17: =SUM(F17:L17) -> 1 | F17: 1
A18: 1 | B18: =PFP!C9 -> P1 | C18: =PFP!E9 -> Engenheiro sênior (P8067) | D18: =PFP!F9 -> mês | E18: 1 | F18: 1
A19: 1 | B19: =PFP!C10 -> P2 | C19: =PFP!E10 -> Engenheiro pleno (P8066) | D19: =PFP!F10 -> mês | E19: 1 | F19: 1
A20: 1 | B20: =PFP!C11 -> P3 | C20: =PFP!E11 -> Engenheiro júnior (P8065) | D20: =PFP!F11 -> mês | E20: 1 | F20: 1 | H20: =H19/2 -> 0 | I20: =I19/2 -> 0 | J20: =J19/2 -> 0 | K20: =K19/2 -> 0 | L20: =L19/2 -> 0
A21: 1 | B21: =PFP!C12 -> T1 | C21: =PFP!E12 -> Técnico de projetos/obra (P8147) | D21: =PFP!F12 -> mês | E21: 1 | F21: 1
A22: 1 | B22: =PFP!C13 -> D | C22: =PFP!E13 -> Desenhista (40807) | D22: =PFP!F13 -> mês | E22: 0
A23: 1 | B23: =PFP!C14 -> A1 | C23: =PFP!E14 -> Secretária (P8135) | D23: =PFP!F14 -> mês | E23: 0
A24: 1 | B24: =PFP!C18 -> V1 | C24: =PFP!E18 -> Diárias | D24: =PFP!F18 -> dia | E24: 25 | F24: 25
A25: 1 | B25: =PFP!C19 -> V2 | C25: =PFP!E19 -> Pick-up Cab.dupla 2.8 4x4 Diesel | D25: =PFP!F19 -> dia | E25: 5 | F25: 5
A26: 1 | B26: =PFP!C20 -> V3 | C26: =PFP!E20 -> Passagens Aéreas (ida e volta) | D26: =PFP!F20 -> un | E26: 5 | F26: 5
A27: 1 | B27: =PFP!C22 -> M2 | C27: =PFP!E22 -> Relatório Final | D27: =PFP!F22 -> un | E27: 1 | F27: 1
A28: 1 | C28: Análise Crítica do Projeto Básico (AC)
A29: 2 | B29: =PFP!C8 -> P0 | C29: =PFP!E8 -> Engenheiro coordenador (P8061) | D29: =PFP!F8 -> mês | E29: =SUM(F29:L29) -> 0
A30: 2 | B30: =PFP!C9 -> P1 | C30: =PFP!E9 -> Engenheiro sênior (P8067) | D30: =PFP!F9 -> mês | E30: 0
A31: 2 | B31: =PFP!C10 -> P2 | C31: =PFP!E10 -> Engenheiro pleno (P8066) | D31: =PFP!F10 -> mês | E31: 0
A32: 2 | B32: =PFP!C11 -> P3 | C32: =PFP!E11 -> Engenheiro júnior (P8065) | D32: =PFP!F11 -> mês | E32: 0 | H32: =H31/2 -> 0 | I32: =I31/2 -> 0 | J32: =J31/2 -> 0 | K32: =K31/2 -> 0
A33: 2 | B33: =PFP!C12 -> T1 | C33: =PFP!E12 -> Técnico de projetos/obra (P8147) | D33: =PFP!F12 -> mês | E33: 0
A34: 2 | B34: =PFP!C13 -> D | C34: =PFP!E13 -> Desenhista (40807) | D34: =PFP!F13 -> mês | E34: 0
A35: 2 | B35: =PFP!C14 -> A1 | C35: =PFP!E14 -> Secretária (P8135) | D35: =PFP!F14 -> mês | E35: 0
A36: 2 | B36: =PFP!C18 -> V1 | C36: =PFP!E18 -> Diárias | D36: =PFP!F18 -> dia
A37: 2 | B37: =PFP!C19 -> V2 | C37: =PFP!E19 -> Pick-up Cab.dupla 2.8 4x4 Diesel | D37: =PFP!F19 -> dia
A38: 2 | B38: =PFP!C20 -> V3 | C38: =PFP!E20 -> Passagens Aéreas (ida e volta) | D38: =PFP!F20 -> un
A39: 2 | B39: =PFP!C23 -> TOP | C39: =PFP!E23 -> Total Serviços Cartográficos | D39: =PFP!F21 -> un | E39: =SUM(F39:L39) -> 1 | G39: 1
A40: 2 | C40: Estudos Básicos (EB)
A41: 3 | B41: =PFP!C8 -> P0 | C41: =PFP!E8 -> Engenheiro coordenador (P8061) | D41: =PFP!F8 -> mês | E41: =SUM(F41:L41) -> 4 | H41: 1 | I41: 1 | J41: 1 | K41: 1
A42: 3 | B42: =PFP!C9 -> P1 | C42: =PFP!E9 -> Engenheiro sênior (P8067) | D42: =PFP!F9 -> mês | E42: 20 | H42: 5 | I42: 5 | J42: 5 | K42: 5
A43: 3 | B43: =PFP!C10 -> P2 | C43: =PFP!E10 -> Engenheiro pleno (P8066) | D43: =PFP!F10 -> mês | E43: 20 | H43: 5 | I43: 5 | J43: 5 | K43: 5
A44: 3 | B44: =PFP!C11 -> P3 | C44: =PFP!E11 -> Engenheiro júnior (P8065) | D44: =PFP!F11 -> mês | E44: 16 | H44: 4 | I44: 4 | J44: 4 | K44: 4
A45: 3 | B45: =PFP!C12 -> T1 | C45: =PFP!E12 -> Técnico de projetos/obra (P8147) | D45: =PFP!F12 -> mês | E45: 12 | H45: 3 | I45: 3 | J45: 3 | K45: 3
A46: 3 | B46: =PFP!C13 -> D | C46: =PFP!E13 -> Desenhista (40807) | D46: =PFP!F13 -> mês | E46: 4 | H46: 1 | I46: 1 | J46: 1 | K46: 1
A47: 3 | B47: =PFP!C14 -> A1 | C47: =PFP!E14 -> Secretária (P8135) | D47: =PFP!F14 -> mês | E47: 4 | H47: 1 | I47: 1 | J47: 1 | K47: 1
A48: 3 | B48: =PFP!C18 -> V1 | C48: =PFP!E18 -> Diárias | D48: =PFP!F18 -> dia | E48: 100 | H48: 25 | I48: 25 | J48: 25 | K48: 25
A49: 3 | B49: =PFP!C19 -> V2 | C49: =PFP!E19 -> Pick-up Cab.dupla 2.8 4x4 Diesel | D49: =PFP!F19 -> dia | E49: 20 | H49: 5 | I49: 5 | J49: 5 | K49: 5
A50: 3 | B50: =PFP!C20 -> V3 | C50: =PFP!E20 -> Passagens Aéreas (ida e volta) | D50: =PFP!F20 -> un | E50: 20 | H50: 5 | I50: 5 | J50: 5 | K50: 5
A51: 3 | B51: =PFP!C22 -> M2 | C51: =PFP!E22 -> Relatório Final | D51: =PFP!F22 -> un | E51: 6 | K51: 6
A52: 3 | C52: Projeto Executivo
A53: Total | C53: Balanço de Insumos | F53: =SUBTOTAL(2,F29:F52) -> 0 | G53: 1 | H53: 11 | I53: 11 | J53: 11 | K53: 12 | L53: 0 | M53: 0 | N53: 0

Sheet MDO_DNIT
A1: Código | B1: Categoria | C1: Unid. | D1: Salário | E1: Encargos Sociais | G1: Encargos Complementares | Q1: Encargos Adicionais | W1: Encargos Totais | Y1: Valor Total | Z1: Encargos Adicionais e Complementares
G2: Alimentação | I2: EPI | K2: Ferramenta | M2: Transporte | O2: Exame Ocupacional | Q2: Cesta Básica | S2: Assistência Médica | U2: Seguro de Vida
D3: R$ | E3: % | F3: R$ | G3: % | H3: R$ | I3: % | J3: R$ | K3: % | L3: R$ | M3: % | N3: R$ | O3: % | P3: R$ | Q3: % | R3: R$ | S3: % | T3: R$ | U3: % | V3: R$ | W3: % | X3: R$ | Y3: R$ | Z3: R$
A4: Profissionais mensalistas
A5: P8001 | B5: Advogado júnior | C5: mês | D5: 4530.07 | E5: 0.7929 | F5: 3591.89 | G5: 0.1552 | H5: 702.89 | I5: 0.0055 | J5: 24.99 | K5: 0 | L5: 0 | M5: 0 | N5: 0 | O5: 0.0006 | P5: 2.83 | Q5: 0 | R5: 0 | S5: 0.0639 | T5: 289.39 | U5: 0.0022 | V5: 9.98 | W5: 1.0203 | X5: 4621.98 | Y5: 9152.05 | Z5: =Y5-F5-D5 -> 1030.09
A6: P8002 | B6: Advogado pleno | C6: mês | D6: 6040.1 | E6: 0.7929 | F6: 4789.19 | G6: 0.1164 | H6: 702.89 | I6: 0.0041 | J6: 24.99 | K6: 0 | L6: 0 | M6: 0 | N6: 0 | O6: 0.0005 | P6: 2.83 | Q6: 0 | R6: 0 | S6: 0.0479 | T6: 289.39 | U6: 0.0017 | V6: 9.98 | W6: 0.9634 | X6: 5819.27 | Y6: 11859.37 | Z6: =Y6-F6-D6 -> 1030.08
A7: P8003 | B7: Advogado sênior | C7: mês | D7: 11150.15 | E7: 0.7929 | F7: 8840.95 | G7: 0.063 | H7: 702.89 | I7: 0.0022 | J7: 24.99 | K7: 0 | L7: 0 | M7: 0 | N7: 0 | O7: 0.0003 | P7: 2.83 | Q7: 0 | R7: 0 | S7: 0.026 | T7: 289.39 | U7: 0.0009 | V7: 9.98 | W7: 0.8853 | X7: 9871.03 | Y7: 21021.18 | Z7: 1030.08
A8: P8007 | B8: Analista de desenvolvimento de sistemas júnior | C8: mês | D8: 4761.5 | E8: 0.796 | F8: 3790.16 | G8: 0.1476 | H8: 702.89 | I8: 0 | J8: 0 | K8: 0 | L8: 0 | M8: 0 | N8: 0 | O8: 0.0008 | P8: 3.69 | Q8: 0 | R8: 0 | S8: 0.0608 | T8: 289.39 | U8: 0.0021 | V8: 9.98 | W8: 1.0073 | X8: 4796.11 | Y8: 9557.61 | Z8: 1005.95
A9: P8008 | B9: Analista de desenvolvimento de sistemas pleno | C9: mês | D9: 5587.15 | E9: 0.796 | F9: 4447.37 | G9: 0.1258 | H9: 702.89 | I9: 0 | J9: 0 | K9: 0 | L9: 0 | M9: 0 | N9: 0 | O9: 0.0007 | P9: 3.69 | Q9: 0 | R9: 0 | S9: 0.0518 | T9: 289.39 | U9: 0.0018 | V9: 9.98 | W9: 0.976 | X9: 5453.33 | Y9: 11040.48 | Z9: 1005.96
A10: P8009 | B10: Analista de desenvolvimento de sistemas sênior | C10: mês | D10: 9769.36 | E10: 0.796 | F10: 7776.41 | G10: 0.0719 | H10: 702.89 | I10: 0 | J10: 0 | K10: 0 | L10: 0 | M10: 0 | N10: 0 | O10: 0.0004 | P10: 3.69 | Q10: 0 | R10: 0 | S10: 0.0296 | T10: 289.39 | U10: 0.001 | V10: 9.98 | W10: 0.899 | X10: 8782.37 | Y10: 18551.73 | Z10: 1005.96
A11: P8013 | B11: Arquiteto júnior | C11: mês | D11: 12002 | E11: 0.7935 | F11: 9523.59 | G11: 0.0586 | H11: 702.89 | I11: 0.0021 | J11: 24.99 | K11: 0 | L11: 0 | M11: 0 | N11: 0 | O11: 0.0002 | P11: 2.66 | Q11: 0 | R11: 0 | S11: 0.0241 | T11: 289.39 | U11: 0.0008 | V11: 9.98 | W11: 0.8793 | X11: 10553.5 | Y11: 22555.5 | Z11: 1029.91
A12: P8014 | B12: Arquiteto pleno | C12: mês | D12: 12275.9 | E12: 0.7935 | F12: 9740.92 | G12: 0.0573 | H12: 702.89 | I12: 0.002 | J12: 24.99 | K12: 0 | L12: 0 | M12: 0 | N12: 0 | O12: 0.0002 | P12: 2.66 | Q12: 0 | R12: 0 | S12: 0.0236 | T12: 289.39 | U12: 0.0008 | V12: 9.98 | W12: 0.8774 | X12: 10770.84 | Y12: 23046.73 | Z12: 1029.91
A13: P8015 | B13: Arquiteto sênior | C13: mês | D13: 14951.37 | E13: 0.7935 | F13: 11863.91 | G13: 0.047 | H13: 702.89 | I13: 0.0017 | J13: 24.99 | K13: 0 | L13: 0 | M13: 0 | N13: 0 | O13: 0.0002 | P13: 2.66 | Q13: 0 | R13: 0 | S13: 0.0194 | T13: 289.39 | U13: 0.0007 | V13: 9.98 | W13: 0.8624 | X13: 12893.82 | Y13: 27845.18 | Z13: 1029.9
A14: P8019 | B14: Assistente social júnior | C14: mês | D14: 3183.32 | E14: 0.802 | F14: 2553.03 | G14: 0.2208 | H14: 702.89 | I14: 0.0078 | J14: 24.99 | K14: 0 | L14: 0 | M14: 0.0088 | N14: 28.03 | O14: 0.0014 | P14: 4.51 | Q14: 0 | R14: 0 | S14: 0.0909 | T14: 289.39 | U14: 0.0031 | V14: 9.98 | W14: 1.1349 | X14: 3612.82 | Y14: 6796.14 | Z14: 1059.79
A15: P8020 | B15: Assistente social pleno | C15: mês | D15: 4244.43 | E15: 0.802 | F15: 3404.03 | G15: 0.1656 | H15: 702.89 | I15: 0.0059 | J15: 24.99 | K15: 0 | L15: 0 | M15: 0 | N15: 0 | O15: 0.0011 | P15: 4.51 | Q15: 0 | R15: 0 | S15: 0.0682 | T15: 289.39 | U15: 0.0024 | V15: 9.98 | W15: 1.0451 | X15: 4435.79 | Y15: 8680.23 | Z15: 1031.77
A16: P8021 | B16: Assistente social sênior | C16: mês | D16: 7054.37 | E16: 0.802 | F16: 5657.6 | G16: 0.0996 | H16: 702.89 | I16: 0.0035 | J16: 24.99 | K16: 0 | L16: 0 | M16: 0 | N16: 0 | O16: 0.0006 | P16: 4.51 | Q16: 0 | R16: 0 | S16: 0.041 | T16: 289.39 | U16: 0.0014 | V16: 9.98 | W16: 0.9483 | X16: 6689.36 | Y16: 13743.73 | Z16: 1031.76
A17: P8025 | B17: Auxiliar | C17: mês | D17: 1554.37 | E17: 0.8147 | F17: 1266.34 | G17: 0.4522 | H17: 702.89 | I17: 0.0196 | J17: 30.42 | K17: 0.001 | L17: 1.56 | M17: 0.0809 | N17: 125.77 | O17: 0.004 | P17: 6.15 | Q17: 0 | R17: 0 | S17: 0.1862 | T17: 289.39 | U17: 0.0064 | V17: 9.98 | W17: 1.5649 | X17: 2432.51 | Y17: 3986.88 | Z17: 1166.17
A18: P8026 | B18: Auxiliar administrativo | C18: mês | D18: 1842.36 | E18: 0.8018 | F18: 1477.2 | G18: 0.3815 | H18: 702.89 | I18: 0 | J18: 0 | K18: 0 | L18: 0 | M18: 0.0589 | N18: 108.49 | O18: 0.002 | P18: 3.75 | Q18: 0 | R18: 0 | S18: 0.1571 | T18: 289.39 | U18: 0.0054 | V18: 9.98 | W18: 1.4067 | X18: 2591.71 | Y18: 4434.07 | Z18: 1114.51
A19: P8027 | B19: Auxiliar de laboratório | C19: mês | D19: 1721.24 | E19: 0.8039 | F19: 1383.71 | G19: 0.4084 | H19: 702.89 | I19: 0.0177 | J19: 30.42 | K19: 0.0019 | L19: 3.21 | M19: 0.0673 | N19: 115.76 | O19: 0.0023 | P19: 4.01 | Q19: 0 | R19: 0 | S19: 0.1681 | T19: 289.39 | U19: 0.0058 | V19: 9.98 | W19: 1.4753 | X19: 2539.37 | Y19: 4260.61 | Z19: 1155.66
A20: P8028 | B20: Auxiliar de topografia | C20: mês | D20: 1554.37 | E20: 0.8067 | F20: 1253.91 | G20: 0.4522 | H20: 702.89 | I20: 0.0196 | J20: 30.42 | K20: 0.0009 | L20: 1.36 | M20: 0.0809 | N20: 125.77 | O20: 0.0028 | P20: 4.39 | Q20: 0 | R20: 0 | S20: 0.1862 | T20: 289.39 | U20: 0.0064 | V20: 9.98 | W20: 1.5557 | X20: 2418.11 | Y20: 3972.48 | Z20: 1164.2
A21: P8032 | B21: Biólogo júnior | C21: mês | D21: 3234.91 | E21: 0.7971 | F21: 2578.55 | G21: 0.2173 | H21: 702.89 | I21: 0.0077 | J21: 24.99 | K21: 0 | L21: 0 | M21: 0.0077 | N21: 24.94 | O21: 0.0011 | P21: 3.67 | Q21: 0 | R21: 0 | S21: 0.0895 | T21: 289.39 | U21: 0.0031 | V21: 9.98 | W21: 1.1235 | X21: 3634.41 | Y21: 6869.32 | Z21: 1055.86
A22: P8033 | B22: Biólogo pleno | C22: mês | D22: 4313.22 | E22: 0.7971 | F22: 3438.07 | G22: 0.163 | H22: 702.89 | I22: 0.0058 | J22: 24.99 | K22: 0 | L22: 0 | M22: 0 | N22: 0 | O22: 0.0009 | P22: 3.67 | Q22: 0 | R22: 0 | S22: 0.0671 | T22: 289.39 | U22: 0.0023 | V22: 9.98 | W22: 1.0361 | X22: 4468.99 | Y22: 8782.21 | Z22: 1030.92
A23: P8034 | B23: Biólogo sênior | C23: mês | D23: 7635.07 | E23: 0.7971 | F23: 6085.92 | G23: 0.0921 | H23: 702.89 | I23: 0.0033 | J23: 24.99 | K23: 0 | L23: 0 | M23: 0 | N23: 0 | O23: 0.0005 | P23: 3.67 | Q23: 0 | R23: 0 | S23: 0.0379 | T23: 289.39 | U23: 0.0013 | V23: 9.98 | W23: 0.9321 | X23: 7116.84 | Y23: 14751.92 | Z23: 1030.93
A24: P8038 | B24: Chefe de escritório | C24: mês | D24: 3358.49 | E24: 0.794 | F24: 2666.64 | G24: 0.2093 | H24: 702.89 | I24: 0 | J24: 0 | K24: 0 | L24: 0 | M24: 0.0052 | N24: 17.52 | O24: 0.0009 | P24: 3.01 | Q24: 0 | R24: 0 | S24: 0.0862 | T24: 289.39 | U24: 0.003 | V24: 9.98 | W24: 1.0985 | X24: 3689.44 | Y24: 7047.93 | Z24: 1022.8
A25: P8040 | B25: Contador júnior | C25: mês | D25: 4154.33 | E25: 0.7932 | F25: 3295.22 | G25: 0.1692 | H25: 702.89 | I25: 0 | J25: 0 | K25: 0 | L25: 0 | M25: 0 | N25: 0 | O25: 0.0006 | P25: 2.57 | Q25: 0 | R25: 0 | S25: 0.0697 | T25: 289.39 | U25: 0.0024 | V25: 9.98 | W25: 1.0351 | X25: 4300.05 | Y25: 8454.38 | Z25: 1004.83
A26: P8041 | B26: Contador pleno | C26: mês | D26: 5539.11 | E26: 0.7932 | F26: 4393.62 | G26: 0.1269 | H26: 702.89 | I26: 0 | J26: 0 | K26: 0 | L26: 0 | M26: 0 | N26: 0 | O26: 0.0005 | P26: 2.57 | Q26: 0 | R26: 0 | S26: 0.0522 | T26: 289.39 | U26: 0.0018 | V26: 9.98 | W26: 0.9746 | X26: 5398.45 | Y26: 10937.56 | Z26: 1004.83
A27: P8042 | B27: Contador sênior | C27: mês | D27: 10620.57 | E27: 0.7932 | F27: 8424.24 | G27: 0.0662 | H27: 702.89 | I27: 0 | J27: 0 | K27: 0 | L27: 0 | M27: 0 | N27: 0 | O27: 0.0002 | P27: 2.57 | Q27: 0 | R27: 0 | S27: 0.0272 | T27: 289.39 | U27: 0.0009 | V27: 9.98 | W27: 0.8878 | X27: 9429.07 | Y27: 20049.64 | Z27: 1004.83
A28: P8044 | B28: Coordenador ambiental | C28: mês | D28: 18522.37 | E28: 0.7958 | F28: 14740.1 | G28: 0.0379 | H28: 702.89 | I28: 0.0012 | J28: 22.82 | K28: 0 | L28: 0 | M28: 0 | N28: 0 | O28: 0.0002 | P28: 3.19 | Q28: 0 | R28: 0 | S28: 0.0156 | T28: 289.39 | U28: 0.0005 | V28: 9.98 | W28: 0.8513 | X28: 15768.37 | Y28: 34290.74 | Z28: 1028.27
A29: P8045 | B29: Economista júnior | C29: mês | D29: 4742.07 | E29: 0.7861 | F29: 3727.74 | G29: 0.1482 | H29: 702.89 | I29: 0 | J29: 0 | K29: 0 | L29: 0 | M29: 0 | N29: 0 | O29: 0.0004 | P29: 1.82 | Q29: 0 | R29: 0 | S29: 0.061 | T29: 289.39 | U29: 0.0021 | V29: 9.98 | W29: 0.9978 | X29: 4731.83 | Y29: 9473.9 | Z29: 1004.09
A30: P8046 | B30: Economista pleno | C30: mês | D30: 6322.76 | E30: 0.7861 | F30: 4970.32 | G30: 0.1112 | H30: 702.89 | I30: 0 | J30: 0 | K30: 0 | L30: 0 | M30: 0 | N30: 0 | O30: 0.0003 | P30: 1.82 | Q30: 0 | R30: 0 | S30: 0.0458 | T30: 289.39 | U30: 0.0016 | V30: 9.98 | W30: 0.9449 | X30: 5974.41 | Y30: 12297.17 | Z30: 1004.09
A31: P8047 | B31: Economista sênior | C31: mês | D31: 10619.55 | E31: 0.7861 | F31: 8348.03 | G31: 0.0662 | H31: 702.89 | I31: 0 | J31: 0 | K31: 0 | L31: 0 | M31: 0 | N31: 0 | O31: 0.0002 | P31: 1.82 | Q31: 0 | R31: 0 | S31: 0.0273 | T31: 289.39 | U31: 0.0009 | V31: 9.98 | W31: 0.8807 | X31: 9352.11 | Y31: 19971.67 | Z31: 1004.09
A32: P8054 | B32: Engenheiro agrônomo júnior | C32: mês | D32: 12002 | E32: 0.7901 | F32: 9482.78 | G32: 0.0586 | H32: 702.89 | I32: 0.0021 | J32: 24.99 | K32: 0 | L32: 0 | M32: 0 | N32: 0 | O32: 0.0002 | P32: 2.44 | Q32: 0 | R32: 0 | S32: 0.0241 | T32: 289.39 | U32: 0.0008 | V32: 9.98 | W32: 0.8759 | X32: 10512.47 | Y32: 22514.47 | Z32: 1029.69
A33: P8055 | B33: Engenheiro agrônomo pleno | C33: mês | D33: 12137.3 | E33: 0.7901 | F33: 9589.68 | G33: 0.0579 | H33: 702.89 | I33: 0.0021 | J33: 24.99 | K33: 0 | L33: 0 | M33: 0 | N33: 0 | O33: 0.0002 | P33: 2.44 | Q33: 0 | R33: 0 | S33: 0.0238 | T33: 289.39 | U33: 0.0008 | V33: 9.98 | W33: 0.8749 | X33: 10619.38 | Y33: 22756.68 | Z33: 1029.7
A34: P8056 | B34: Engenheiro agrônomo sênior | C34: mês | D34: 13689.19 | E34: 0.7901 | F34: 10815.83 | G34: 0.0513 | H34: 702.89 | I34: 0.0018 | J34: 24.99 | K34: 0 | L34: 0 | M34: 0 | N34: 0 | O34: 0.0002 | P34: 2.44 | Q34: 0 | R34: 0 | S34: 0.0211 | T34: 289.39 | U34: 0.0007 | V34: 9.98 | W34: 0.8653 | X34: 11845.52 | Y34: 25534.71 | Z34: 1029.69
A35: P8057 | B35: Engenheiro ambiental júnior | C35: mês | D35: 12002 | E35: 0.7969 | F35: 9564.39 | G35: 0.0586 | H35: 702.89 | I35: 0.0021 | J35: 24.99 | K35: 0 | L35: 0 | M35: 0 | N35: 0 | O35: 0.0003 | P35: 3.6 | Q35: 0 | R35: 0 | S35: 0.0241 | T35: 289.39 | U35: 0.0008 | V35: 9.98 | W35: 0.8828 | X35: 10595.25 | Y35: 22597.25 | Z35: 1030.86
A36: P8058 | B36: Engenheiro ambiental pleno | C36: mês | D36: 13319.39 | E36: 0.7969 | F36: 10614.22 | G36: 0.0528 | H36: 702.89 | I36: 0.0019 | J36: 24.99 | K36: 0 | L36: 0 | M36: 0 | N36: 0 | O36: 0.0003 | P36: 3.6 | Q36: 0 | R36: 0 | S36: 0.0217 | T36: 289.39 | U36: 0.0007 | V36: 9.98 | W36: 0.8743 | X36: 11645.07 | Y36: 24964.47 | Z36: 1030.86
A37: P8059 | B37: Engenheiro ambiental sênior | C37: mês | D37: 14636.78 | E37: 0.7969 | F37: 11664.05 | G37: 0.048 | H37: 702.89 | I37: 0.0017 | J37: 24.99 | K37: 0 | L37: 0 | M37: 0 | N37: 0 | O37: 0.0002 | P37: 3.6 | Q37: 0 | R37: 0 | S37: 0.0198 | T37: 289.39 | U37: 0.0007 | V37: 9.98 | W37: 0.8673 | X37: 12694.9 | Y37: 27331.69 | Z37: 1030.86
A38: P8060 | B38: Engenheiro consultor especial | C38: mês | D38: 21440.03 | E38: 0.797 | F38: 17087.71 | G38: 0.0328 | H38: 702.89 | I38: 0.0011 | J38: 22.82 | K38: 0 | L38: 0 | M38: 0 | N38: 0 | O38: 0.0002 | P38: 3.98 | Q38: 0 | R38: 0 | S38: 0.0135 | T38: 289.39 | U38: 0.0005 | V38: 9.98 | W38: 0.845 | X38: 18116.77 | Y38: 39556.8 | Z38: 1029.06
A39: P8061 | B39: Engenheiro coordenador | C39: mês | D39: 17866.69 | E39: 0.797 | F39: 14239.76 | G39: 0.0393 | H39: 702.89 | I39: 0.0013 | J39: 22.82 | K39: 0 | L39: 0 | M39: 0 | N39: 0 | O39: 0.0002 | P39: 3.98 | Q39: 0 | R39: 0 | S39: 0.0162 | T39: 289.39 | U39: 0.0006 | V39: 9.98 | W39: 0.8546 | X39: 15268.82 | Y39: 33135.51 | Z39: 1029.06
A40: P8062 | B40: Engenheiro de pesca júnior | C40: mês | D40: 12002 | E40: 0.8029 | F40: 9636.41 | G40: 0.0586 | H40: 702.89 | I40: 0.0021 | J40: 24.99 | K40: 0 | L40: 0 | M40: 0 | N40: 0 | O40: 0.0004 | P40: 4.39 | Q40: 0 | R40: 0 | S40: 0.0241 | T40: 289.39 | U40: 0.0008 | V40: 9.98 | W40: 0.8889 | X40: 10668.05 | Y40: 22670.05 | Z40: 1031.64
A41: P8063 | B41: Engenheiro de pesca pleno | C41: mês | D41: 12623.69 | E41: 0.8029 | F41: 10135.56 | G41: 0.0557 | H41: 702.89 | I41: 0.002 | J41: 24.99 | K41: 0 | L41: 0 | M41: 0 | N41: 0 | O41: 0.0003 | P41: 4.39 | Q41: 0 | R41: 0 | S41: 0.0229 | T41: 289.39 | U41: 0.0008 | V41: 9.98 | W41: 0.8846 | X41: 11167.2 | Y41: 23790.89 | Z41: 1031.64
A42: P8064 | B42: Engenheiro de pesca sênior | C42: mês | D42: 16283.3 | E42: 0.8029 | F42: 13073.86 | G42: 0.0432 | H42: 702.89 | I42: 0.0015 | J42: 24.99 | K42: 0 | L42: 0 | M42: 0 | N42: 0 | O42: 0.0003 | P42: 4.39 | Q42: 0 | R42: 0 | S42: 0.0178 | T42: 289.39 | U42: 0.0006 | V42: 9.98 | W42: 0.8663 | X42: 14105.5 | Y42: 30388.8 | Z42: 1031.64
A43: P8065 | B43: Engenheiro de projetos júnior | C43: mês | D43: 12002 | E43: 0.797 | F43: 9565.59 | G43: 0.0586 | H43: 702.89 | I43: 0.0021 | J43: 24.99 | K43: 0 | L43: 0 | M43: 0 | N43: 0 | O43: 0.0003 | P43: 3.98 | Q43: 0 | R43: 0 | S43: 0.0241 | T43: 289.39 | U43: 0.0008 | V43: 9.98 | W43: 0.8829 | X43: 10596.82 | Y43: 22598.82 | Z43: 1031.23
A44: P8066 | B44: Engenheiro de projetos pleno | C44: mês | D44: 12379.96 | E44: 0.797 | F44: 9866.83 | G44: 0.0568 | H44: 702.89 | I44: 0.002 | J44: 24.99 | K44: 0 | L44: 0 | M44: 0 | N44: 0 | O44: 0.0003 | P44: 3.98 | Q44: 0 | R44: 0 | S44: 0.0234 | T44: 289.39 | U44: 0.0008 | V44: 9.98 | W44: 0.8803 | X44: 10898.06 | Y44: 23278.02 | Z44: 1031.23
A45: P8067 | B45: Engenheiro de projetos sênior | C45: mês | D45: 15564.54 | E45: 0.797 | F45: 12404.93 | G45: 0.0452 | H45: 702.89 | I45: 0.0016 | J45: 24.99 | K45: 0 | L45: 0 | M45: 0 | N45: 0 | O45: 0.0003 | P45: 3.98 | Q45: 0 | R45: 0 | S45: 0.0186 | T45: 289.39 | U45: 0.0006 | V45: 9.98 | W45: 0.8633 | X45: 13436.16 | Y45: 29000.7 | Z45: 1031.23
A46: P8068 | B46: Engenheiro florestal júnior | C46: mês | D46: 12002 | E46: 0.8029 | F46: 9636.41 | G46: 0.0586 | H46: 702.89 | I46: 0.0021 | J46: 24.99 | K46: 0 | L46: 0 | M46: 0 | N46: 0 | O46: 0.0004 | P46: 4.39 | Q46: 0 | R46: 0 | S46: 0.0241 | T46: 289.39 | U46: 0.0008 | V46: 9.98 | W46: 0.8889 | X46: 10668.05 | Y46: 22670.05 | Z46: 1031.64
A47: P8069 | B47: Engenheiro florestal pleno | C47: mês | D47: 12623.69 | E47: 0.8029 | F47: 10135.56 | G47: 0.0557 | H47: 702.89 | I47: 0.002 | J47: 24.99 | K47: 0 | L47: 0 | M47: 0 | N47: 0 | O47: 0.0003 | P47: 4.39 | Q47: 0 | R47: 0 | S47: 0.0229 | T47: 289.39 | U47: 0.0008 | V47: 9.98 | W47: 0.8846 | X47: 11167.2 | Y47: 23790.89 | Z47: 1031.64
A48: P8070 | B48: Engenheiro florestal sênior | C48: mês | D48: 16283.3 | E48: 0.8029 | F48: 13073.86 | G48: 0.0432 | H48: 702.89 | I48: 0.0015 | J48: 24.99 | K48: 0 | L48: 0 | M48: 0 | N48: 0 | O48: 0.0003 | P48: 4.39 | Q48: 0 | R48: 0 | S48: 0.0178 | T48: 289.39 | U48: 0.0006 | V48: 9.98 | W48: 0.8663 | X48: 14105.5 | Y48: 30388.8 | Z48: 1031.64
A49: P8080 | B49: Geólogo júnior | C49: mês | D49: 10004.5 | E49: 0.8014 | F49: 8017.61 | G49: 0.0703 | H49: 702.89 | I49: 0.0025 | J49: 24.99 | K49: 0 | L49: 0 | M49: 0 | N49: 0 | O49: 0.0003 | P49: 3.44 | Q49: 0 | R49: 0 | S49: 0.0289 | T49: 289.39 | U49: 0.001 | V49: 9.98 | W49: 0.9044 | X49: 9048.3 | Y49: 19052.8 | Z49: 1030.69
A50: P8081 | B50: Geólogo pleno | C50: mês | D50: 11840.54 | E50: 0.8014 | F50: 9489.01 | G50: 0.0594 | H50: 702.89 | I50: 0.0021 | J50: 24.99 | K50: 0 | L50: 0 | M50: 0 | N50: 0 | O50: 0.0003 | P50: 3.44 | Q50: 0 | R50: 0 | S50: 0.0244 | T50: 289.39 | U50: 0.0008 | V50: 9.98 | W50: 0.8884 | X50: 10519.7 | Y50: 22360.25 | Z50: 1030.7
A51: P8082 | B51: Geólogo sênior | C51: mês | D51: 13676.59 | E51: 0.8014 | F51: 10960.42 | G51: 0.0514 | H51: 702.89 | I51: 0.0018 | J51: 24.99 | K51: 0 | L51: 0 | M51: 0 | N51: 0 | O51: 0.0003 | P51: 3.44 | Q51: 0 | R51: 0 | S51: 0.0212 | T51: 289.39 | U51: 0.0007 | V51: 9.98 | W51: 0.8768 | X51: 11991.11 | Y51: 25667.7 | Z51: 1030.69
A52: P8092 | B52: Jornalista júnior | C52: mês | D52: 3004.28 | E52: 0.7958 | F52: 2390.81 | G52: 0.234 | H52: 702.89 | I52: 0.0083 | J52: 24.99 | K52: 0 | L52: 0 | M52: 0.0129 | N52: 38.78 | O52: 0.0009 | P52: 2.74 | Q52: 0 | R52: 0 | S52: 0.0963 | T52: 289.39 | U52: 0.0033 | V52: 9.98 | W52: 1.1515 | X52: 3459.58 | Y52: 6463.86 | Z52: 1068.77
A53: P8093 | B53: Jornalista pleno | C53: mês | D53: 4005.71 | E53: 0.7958 | F53: 3187.74 | G53: 0.1755 | H53: 702.89 | I53: 0.0062 | J53: 24.99 | K53: 0 | L53: 0 | M53: 0 | N53: 0 | O53: 0.0007 | P53: 2.74 | Q53: 0 | R53: 0 | S53: 0.0722 | T53: 289.39 | U53: 0.0025 | V53: 9.98 | W53: 1.0529 | X53: 4217.74 | Y53: 8223.45 | Z53: 1030
A54: P8094 | B54: Jornalista sênior | C54: mês | D54: 7743.99 | E54: 0.7958 | F54: 6162.67 | G54: 0.0908 | H54: 702.89 | I54: 0.0032 | J54: 24.99 | K54: 0 | L54: 0 | M54: 0 | N54: 0 | O54: 0.0004 | P54: 2.74 | Q54: 0 | R54: 0 | S54: 0.0374 | T54: 289.39 | U54: 0.0013 | V54: 9.98 | W54: 0.9288 | X54: 7192.67 | Y54: 14936.66 | Z54: 1030
A55: P8098 | B55: Laboratorista | C55: mês | D55: 2294.99 | E55: 0.8039 | F55: 1844.94 | G55: 0.3063 | H55: 702.89 | I55: 0.0122 | J55: 28.01 | K55: 0 | L55: 0 | M55: 0.0354 | N55: 81.33 | O55: 0.0017 | P55: 4.01 | Q55: 0 | R55: 0 | S55: 0.1261 | T55: 289.39 | U55: 0.0043 | V55: 9.98 | W55: 1.29 | X55: 2960.56 | Y55: 5255.55 | Z55: 1115.62
A56: P8102 | B56: Médico veterinário | C56: mês | D56: 12002 | E56: 0.7913 | F56: 9497.18 | G56: 0.0586 | H56: 702.89 | I56: 0.0021 | J56: 24.99 | K56: 0 | L56: 0 | M56: 0 | N56: 0 | O56: 0.0002 | P56: 2.21 | Q56: 0 | R56: 0 | S56: 0.0241 | T56: 289.39 | U56: 0.0008 | V56: 9.98 | W56: 0.8771 | X56: 10526.65 | Y56: 22528.65 | Z56: 1029.47
A57: P8106 | B57: Meteorologista júnior | C57: mês | D57: 5290.59 | E57: 0.7922 | F57: 4191.21 | G57: 0.1329 | H57: 702.89 | I57: 0.0047 | J57: 24.99 | K57: 0 | L57: 0 | M57: 0 | N57: 0 | O57: 0.0005 | P57: 2.47 | Q57: 0 | R57: 0 | S57: 0.0547 | T57: 289.39 | U57: 0.0019 | V57: 9.98 | W57: 0.9868 | X57: 5220.92 | Y57: 10511.51 | Z57: 1029.71
A58: P8107 | B58: Meteorologista pleno | C58: mês | D58: 7054.12 | E58: 0.7922 | F58: 5588.27 | G58: 0.0996 | H58: 702.89 | I58: 0.0035 | J58: 24.99 | K58: 0 | L58: 0 | M58: 0 | N58: 0 | O58: 0.0003 | P58: 2.47 | Q58: 0 | R58: 0 | S58: 0.041 | T58: 289.39 | U58: 0.0014 | V58: 9.98 | W58: 0.9382 | X58: 6617.99 | Y58: 13672.11 | Z58: 1029.72
A59: P8108 | B59: Meteorologista sênior | C59: mês | D59: 11877.06 | E59: 0.7922 | F59: 9409 | G59: 0.0592 | H59: 702.89 | I59: 0.0021 | J59: 24.99 | K59: 0 | L59: 0 | M59: 0 | N59: 0 | O59: 0.0002 | P59: 2.47 | Q59: 0 | R59: 0 | S59: 0.0244 | T59: 289.39 | U59: 0.0008 | V59: 9.98 | W59: 0.8789 | X59: 10438.72 | Y59: 22315.78 | Z59: 1029.72
A60: P8112 | B60: Motorista de caminhão | C60: mês | D60: 2285.67 | E60: 0.8062 | F60: 1842.71 | G60: 0.3075 | H60: 702.89 | I60: 0.0133 | J60: 30.42 | K60: 0 | L60: 0 | M60: 0.0358 | N60: 81.89 | O60: 0.0019 | P60: 4.27 | Q60: 0 | R60: 0 | S60: 0.1266 | T60: 289.39 | U60: 0.0044 | V60: 9.98 | W60: 1.2957 | X60: 2961.55 | Y60: 5247.22 | Z60: 1118.84
A61: P8113 | B61: Motorista de veículo leve | C61: mês | D61: 2024.72 | E61: 0.802 | F61: 1623.83 | G61: 0.3472 | H61: 702.89 | I61: 0.015 | J61: 30.42 | K61: 0 | L61: 0 | M61: 0.0482 | N61: 97.55 | O61: 0.0019 | P61: 3.86 | Q61: 0 | R61: 0 | S61: 0.1429 | T61: 289.39 | U61: 0.0049 | V61: 9.98 | W61: 1.3621 | X61: 2757.92 | Y61: 4782.64 | Z61: 1134.09
A62: P8117 | B62: Oceanógrafo júnior | C62: mês | D62: 4943.07 | E62: 0.8026 | F62: 3967.31 | G62: 0.1422 | H62: 702.89 | I62: 0.0051 | J62: 24.99 | K62: 0 | L62: 0 | M62: 0 | N62: 0 | O62: 0.0008 | P62: 4.07 | Q62: 0 | R62: 0 | S62: 0.0585 | T62: 289.39 | U62: 0.002 | V62: 9.98 | W62: 1.0112 | X62: 4998.63 | Y62: 9941.7 | Z62: 1031.32
A63: P8118 | B63: Oceanógrafo pleno | C63: mês | D63: 6590.76 | E63: 0.8026 | F63: 5289.75 | G63: 0.1066 | H63: 702.89 | I63: 0.0038 | J63: 24.99 | K63: 0 | L63: 0 | M63: 0 | N63: 0 | O63: 0.0006 | P63: 4.07 | Q63: 0 | R63: 0 | S63: 0.0439 | T63: 289.39 | U63: 0.0015 | V63: 9.98 | W63: 0.9591 | X63: 6321.07 | Y63: 12911.83 | Z63: 1031.32
A64: P8119 | B64: Oceanógrafo sênior | C64: mês | D64: 12409.57 | E64: 0.8026 | F64: 9959.92 | G64: 0.0566 | H64: 702.89 | I64: 0.002 | J64: 24.99 | K64: 0 | L64: 0 | M64: 0 | N64: 0 | O64: 0.0003 | P64: 4.07 | Q64: 0 | R64: 0 | S64: 0.0233 | T64: 289.39 | U64: 0.0008 | V64: 9.98 | W64: 0.8857 | X64: 10991.24 | Y64: 23400.81 | Z64: 1031.32
A65: P8129 | B65: Pedagogo júnior | C65: mês | D65: 2381.06 | E65: 0.8453 | F65: 2012.71 | G65: 0.2952 | H65: 702.89 | I65: 0.0105 | J65: 24.99 | K65: 0 | L65: 0 | M65: 0.032 | N65: 76.17 | O65: 0.004 | P65: 9.57 | Q65: 0 | R65: 0 | S65: 0.1215 | T65: 289.39 | U65: 0.0042 | V65: 9.98 | W65: 1.3127 | X65: 3125.7 | Y65: 5506.75 | Z65: 1112.98
A66: P8130 | B66: Pedagogo pleno | C66: mês | D66: 3174.74 | E66: 0.8453 | F66: 2683.61 | G66: 0.2214 | H66: 702.89 | I66: 0.0079 | J66: 24.99 | K66: 0 | L66: 0 | M66: 0.009 | N66: 28.55 | O66: 0.003 | P66: 9.57 | Q66: 0 | R66: 0 | S66: 0.0912 | T66: 289.39 | U66: 0.0031 | V66: 9.98 | W66: 1.1809 | X66: 3748.98 | Y66: 6923.72 | Z66: 1065.37
A67: P8131 | B67: Pedagogo sênior | C67: mês | D67: 4728.95 | E67: 0.8453 | F67: 3997.38 | G67: 0.1486 | H67: 702.89 | I67: 0.0053 | J67: 24.99 | K67: 0 | L67: 0 | M67: 0 | N67: 0 | O67: 0.002 | P67: 9.57 | Q67: 0 | R67: 0 | S67: 0.0612 | T67: 289.39 | U67: 0.0021 | V67: 9.98 | W67: 1.0646 | X67: 5034.2 | Y67: 9763.15 | Z67: 1036.82
A68: P8135 | B68: Secretária | C68: mês | D68: 2604.78 | E68: 0.7976 | F68: 2077.57 | G68: 0.2698 | H68: 702.89 | I68: 0 | J68: 0 | K68: 0 | L68: 0 | M68: 0.0241 | N68: 62.75 | O68: 0.0014 | P68: 3.6 | Q68: 0 | R68: 0 | S68: 0.1111 | T68: 289.39 | U68: 0.0038 | V68: 9.98 | W68: 1.2079 | X68: 3146.18 | Y68: 5750.97 | Z68: 1068.62
A69: P8139 | B69: Sondador | C69: mês | D69: 1989.67 | E69: 0.8001 | F69: 1591.94 | G69: 0.3533 | H69: 702.89 | I69: 0.0141 | J69: 28.01 | K69: 0 | L69: 0 | M69: 0.0501 | N69: 99.65 | O69: 0.0023 | P69: 4.57 | Q69: 0 | R69: 0 | S69: 0.1454 | T69: 289.39 | U69: 0.005 | V69: 9.98 | W69: 1.3703 | X69: 2726.43 | Y69: 4716.1 | Z69: 1134.49
A70: P8143 | B70: Técnico ambiental | C70: mês | D70: 2831.37 | E70: 0.8071 | F70: 2285.2 | G70: 0.2483 | H70: 702.89 | I70: 0.0099 | J70: 28.01 | K70: 0 | L70: 0 | M70: 0.0174 | N70: 49.15 | O70: 0.0017 | P70: 4.9 | Q70: 0 | R70: 0 | S70: 0.1022 | T70: 289.39 | U70: 0.0035 | V70: 9.98 | W70: 1.1901 | X70: 3369.53 | Y70: 6200.9 | Z70: =Y70-F70-D70 -> 1084.33
A71: P8147 | B71: Técnico de obras | C71: mês | D71: 3167.62 | E71: 0.8021 | F71: 2540.75 | G71: 0.2219 | H71: 702.89 | I71: 0.0088 | J71: 28.01 | K71: 0 | L71: 0 | M71: 0.0091 | N71: 28.97 | O71: 0.0012 | P71: 3.79 | Q71: 0 | R71: 0 | S71: 0.0914 | T71: 289.39 | U71: 0.0032 | V71: 9.98 | W71: 1.1377 | X71: 3603.79 | Y71: 6771.41 | Z71: 1063.04
A72: P8151 | B72: Técnico de segurança do trabalho | C72: mês | D72: 4457.84 | E72: 0.8095 | F72: 3608.62 | G72: 0.1577 | H72: 702.89 | I72: 0.0063 | J72: 28.01 | K72: 0 | L72: 0 | M72: 0 | N72: 0 | O72: 0.001 | P72: 4.68 | Q72: 0 | R72: 0 | S72: 0.0649 | T72: 289.39 | U72: 0.0022 | V72: 9.98 | W72: 1.0417 | X72: 4643.57 | Y72: 9101.41 | Z72: 1034.95
A73: P8155 | B73: Técnico em geoprocessamento | C73: mês | D73: 2801.45 | E73: 0.7974 | F73: 2233.88 | G73: 0.2509 | H73: 702.89 | I73: 0.01 | J73: 28.01 | K73: 0 | L73: 0 | M73: 0.0182 | N73: 50.94 | O73: 0.0013 | P73: 3.73 | Q73: 0 | R73: 0 | S73: 0.1033 | T73: 289.39 | U73: 0.0036 | V73: 9.98 | W73: 1.1847 | X73: 3318.83 | Y73: 6120.29 | Z73: 1084.96
A74: P8159 | B74: Técnico em informática - programador | C74: mês | D74: 4761.5 | E74: 0.8015 | F74: 3816.34 | G74: 0.1476 | H74: 702.89 | I74: 0 | J74: 0 | K74: 0 | L74: 0 | M74: 0 | N74: 0 | O74: 0.0008 | P74: 3.61 | Q74: 0 | R74: 0 | S74: 0.0608 | T74: 289.39 | U74: 0.0021 | V74: 9.98 | W74: 1.0128 | X74: 4822.22 | Y74: 9583.72 | Z74: 1005.88
A75: P8163 | B75: Topógrafo | C75: mês | D75: 2390.63 | E75: 0.8067 | F75: 1928.52 | G75: 0.294 | H75: 702.89 | I75: 0.0117 | J75: 28.01 | K75: 0 | L75: 0 | M75: 0.0316 | N75: 75.59 | O75: 0.0018 | P75: 4.39 | Q75: 0 | R75: 0 | S75: 0.1211 | T75: 289.39 | U75: 0.0042 | V75: 9.98 | W75: 1.2711 | X75: 3038.78 | Y75: 5429.4 | Z75: 1110.25
A76: P8167 | B76: Arquivista júnior | C76: mês | D76: 2378.02 | E76: 0.8002 | F76: 1902.89 | G76: 0.2956 | H76: 702.89 | I76: 0 | J76: 0 | K76: 0 | L76: 0 | M76: 0.0321 | N76: 76.35 | O76: 0.0014 | P76: 3.25 | Q76: 0 | R76: 0 | S76: 0.1217 | T76: 289.39 | U76: 0.0042 | V76: 9.98 | W76: 1.2551 | X76: 2984.76 | Y76: 5362.77 | Z76: 1081.86
A77: P8168 | B77: Arquivista pleno | C77: mês | D77: 3170.69 | E77: 0.8002 | F77: 2537.19 | G77: 0.2217 | H77: 702.89 | I77: 0 | J77: 0 | K77: 0 | L77: 0 | M77: 0.0091 | N77: 28.79 | O77: 0.001 | P77: 3.25 | Q77: 0 | R77: 0 | S77: 0.0913 | T77: 289.39 | U77: 0.0031 | V77: 9.98 | W77: 1.1264 | X77: 3571.49 | Y77: 6742.18 | Z77: 1034.3
A78: P8169 | B78: Arquivista sênior | C78: mês | D78: 5052.64 | E78: 0.8002 | F78: 4043.13 | G78: 0.1391 | H78: 702.89 | I78: 0 | J78: 0 | K78: 0 | L78: 0 | M78: 0 | N78: 0 | O78: 0.0006 | P78: 3.25 | Q78: 0 | R78: 0 | S78: 0.0573 | T78: 289.39 | U78: 0.002 | V78: 9.98 | W78: 0.9992 | X78: 5048.64 | Y78: 10101.29 | Z78: 1005.52
A79: P8173 | B79: Administrador júnior | C79: mês | D79: 3268.41 | E79: 0.7979 | F79: 2607.86 | G79: 0.2151 | H79: 702.89 | I79: 0 | J79: 0 | K79: 0 | L79: 0 | M79: 0.007 | N79: 22.93 | O79: 0.0011 | P79: 3.71 | Q79: 0 | R79: 0 | S79: 0.0885 | T79: 289.39 | U79: 0.0031 | V79: 9.98 | W79: 1.1127 | X79: 3636.77 | Y79: 6905.18 | Z79: 1028.91
A80: P8174 | B80: Administrador pleno | C80: mês | D80: 4357.88 | E80: 0.7979 | F80: 3477.15 | G80: 0.1613 | H80: 702.89 | I80: 0 | J80: 0 | K80: 0 | L80: 0 | M80: 0 | N80: 0 | O80: 0.0009 | P80: 3.71 | Q80: 0 | R80: 0 | S80: 0.0664 | T80: 289.39 | U80: 0.0023 | V80: 9.98 | W80: 1.0287 | X80: 4483.13 | Y80: 8841.01 | Z80: 1005.98
A81: P8175 | B81: Administrador sênior | C81: mês | D81: 7766 | E81: 0.7979 | F81: 6196.49 | G81: 0.0905 | H81: 702.89 | I81: 0 | J81: 0 | K81: 0 | L81: 0 | M81: 0 | N81: 0 | O81: 0.0005 | P81: 3.71 | Q81: 0 | R81: 0 | S81: 0.0373 | T81: 289.39 | U81: 0.0013 | V81: 9.98 | W81: 0.9274 | X81: 7202.46 | Y81: 14968.46 | Z81: 1005.97
A82: P8180 | B82: Engenheiro agrimensor júnior | C82: mês | D82: 12002 | E82: 0.7982 | F82: 9580 | G82: 0.0586 | H82: 702.89 | I82: 0.0021 | J82: 24.99 | K82: 0 | L82: 0 | M82: 0 | N82: 0 | O82: 0.0003 | P82: 4.17 | Q82: 0 | R82: 0 | S82: 0.0241 | T82: 289.39 | U82: 0.0008 | V82: 9.98 | W82: 0.8841 | X82: 10611.41 | Y82: 22613.41 | Z82: 1031.41
A83: P8181 | B83: Engenheiro agrimensor pleno | C83: mês | D83: 13020.37 | E83: 0.7982 | F83: 10392.86 | G83: 0.054 | H83: 702.89 | I83: 0.0019 | J83: 24.99 | K83: 0 | L83: 0 | M83: 0 | N83: 0 | O83: 0.0003 | P83: 4.17 | Q83: 0 | R83: 0 | S83: 0.0222 | T83: 289.39 | U83: 0.0008 | V83: 9.98 | W83: 0.8774 | X83: 11424.28 | Y83: 24444.65 | Z83: 1031.42
A84: P8182 | B84: Engenheiro agrimensor sênior | C84: mês | D84: 14038.74 | E84: 0.7982 | F84: 11205.72 | G84: 0.0501 | H84: 702.89 | I84: 0.0018 | J84: 24.99 | K84: 0 | L84: 0 | M84: 0 | N84: 0 | O84: 0.0003 | P84: 4.17 | Q84: 0 | R84: 0 | S84: 0.0206 | T84: 289.39 | U84: 0.0007 | V84: 9.98 | W84: 0.8717 | X84: 12237.14 | Y84: 26275.88 | Z84: 1031.42
A85: P8183 | B85: Geógrafo júnior | C85: mês | D85: 3842.9 | E85: 0.7968 | F85: 3062.02 | G85: 0.1829 | H85: 702.89 | I85: 0.0065 | J85: 24.99 | K85: 0 | L85: 0 | M85: 0 | N85: 0 | O85: 0.0008 | P85: 3.25 | Q85: 0 | R85: 0 | S85: 0.0753 | T85: 289.39 | U85: 0.0026 | V85: 9.98 | W85: 1.065 | X85: 4092.52 | Y85: 7935.42 | Z85: 1030.5
A86: P8184 | B86: Geógrafo pleno | C86: mês | D86: 5123.87 | E86: 0.7968 | F86: 4082.7 | G86: 0.1372 | H86: 702.89 | I86: 0.0049 | J86: 24.99 | K86: 0 | L86: 0 | M86: 0 | N86: 0 | O86: 0.0006 | P86: 3.25 | Q86: 0 | R86: 0 | S86: 0.0565 | T86: 289.39 | U86: 0.0019 | V86: 9.98 | W86: 0.9979 | X86: 5113.2 | Y86: 10237.07 | Z86: 1030.5
A87: P8185 | B87: Geógrafo sênior | C87: mês | D87: 9831.81 | E87: 0.7968 | F87: 7833.99 | G87: 0.0715 | H87: 702.89 | I87: 0.0025 | J87: 24.99 | K87: 0 | L87: 0 | M87: 0 | N87: 0 | O87: 0.0003 | P87: 3.25 | Q87: 0 | R87: 0 | S87: 0.0294 | T87: 289.39 | U87: 0.001 | V87: 9.98 | W87: 0.9016 | X87: 8864.49 | Y87: 18696.3 | Z87: 1030.5
A88: P8186 | B88: Antropólogo júnior | C88: mês | D88: 2946.19 | E88: 0.8168 | F88: 2406.45 | G88: 0.2386 | H88: 702.89 | I88: 0.0085 | J88: 24.99 | K88: 0 | L88: 0 | M88: 0.0143 | N88: 42.26 | O88: 0.0018 | P88: 5.32 | Q88: 0 | R88: 0 | S88: 0.0982 | T88: 289.39 | U88: 0.0034 | V88: 9.98 | W88: 1.1816 | X88: 3481.28 | Y88: 6427.47 | Z88: 1074.83
A89: P8187 | B89: Antropólogo pleno | C89: mês | D89: 3928.26 | E89: 0.8168 | F89: 3208.6 | G89: 0.1789 | H89: 702.89 | I89: 0.0064 | J89: 24.99 | K89: 0 | L89: 0 | M89: 0 | N89: 0 | O89: 0.0014 | P89: 5.32 | Q89: 0 | R89: 0 | S89: 0.0737 | T89: 289.39 | U89: 0.0025 | V89: 9.98 | W89: 1.0797 | X89: 4241.17 | Y89: 8169.43 | Z89: 1032.57
A90: P8188 | B90: Antropólogo sênior | C90: mês | D90: 5873.81 | E90: 0.8168 | F90: 4797.73 | G90: 0.1197 | H90: 702.89 | I90: 0.0043 | J90: 24.99 | K90: 0 | L90: 0 | M90: 0 | N90: 0 | O90: 0.0009 | P90: 5.32 | Q90: 0 | R90: 0 | S90: 0.0493 | T90: 289.39 | U90: 0.0017 | V90: 9.98 | W90: 0.9926 | X90: 5830.3 | Y90: 11704.11 | Z90: 1032.57
A91: P8189 | B91: Arqueólogo júnior | C91: mês | D91: 2738.44 | E91: 0.7987 | F91: 2187.19 | G91: 0.2567 | H91: 702.89 | I91: 0.0091 | J91: 24.99 | K91: 0 | L91: 0 | M91: 0.02 | N91: 54.73 | O91: 0.0014 | P91: 3.74 | Q91: 0 | R91: 0 | S91: 0.1057 | T91: 289.39 | U91: 0.0036 | V91: 9.98 | W91: 1.1952 | X91: 3272.9 | Y91: 6011.34 | Z91: 1085.71
A92: P8190 | B92: Arqueólogo pleno | C92: mês | D92: 3651.25 | E92: 0.7987 | F92: 2916.26 | G92: 0.1925 | H92: 702.89 | I92: 0.0068 | J92: 24.99 | K92: 0 | L92: 0 | M92: 0 | N92: 0 | O92: 0.001 | P92: 3.74 | Q92: 0 | R92: 0 | S92: 0.0793 | T92: 289.39 | U92: 0.0027 | V92: 9.98 | W92: 1.0811 | X92: 3947.24 | Y92: 7598.5 | Z92: 1030.99
A93: P8191 | B93: Arqueólogo sênior | C93: mês | D93: 5503.01 | E93: 0.7987 | F93: 4395.25 | G93: 0.1277 | H93: 702.89 | I93: 0.0045 | J93: 24.99 | K93: 0 | L93: 0 | M93: 0 | N93: 0 | O93: 0.0007 | P93: 3.74 | Q93: 0 | R93: 0 | S93: 0.0526 | T93: 289.39 | U93: 0.0018 | V93: 9.98 | W93: 0.9861 | X93: 5426.24 | Y93: 10929.24 | Z93: 1030.98
A94: P8192 | B94: Historiador júnior | C94: mês | D94: 3935.94 | E94: 0.8033 | F94: 3161.74 | G94: 0.1786 | H94: 702.89 | I94: 0.0063 | J94: 24.99 | K94: 0 | L94: 0 | M94: 0 | N94: 0 | O94: 0.0009 | P94: 3.7 | Q94: 0 | R94: 0 | S94: 0.0735 | T94: 289.39 | U94: 0.0025 | V94: 9.98 | W94: 1.0652 | X94: 4192.69 | Y94: 8128.63 | Z94: 1030.95
A95: P8193 | B95: Historiador pleno | C95: mês | D95: 5247.92 | E95: 0.8033 | F95: 4215.66 | G95: 0.1339 | H95: 702.89 | I95: 0.0048 | J95: 24.99 | K95: 0 | L95: 0 | M95: 0 | N95: 0 | O95: 0.0007 | P95: 3.7 | Q95: 0 | R95: 0 | S95: 0.0551 | T95: 289.39 | U95: 0.0019 | V95: 9.98 | W95: 0.9997 | X95: 5246.6 | Y95: 10494.53 | Z95: 1030.95
A96: P8194 | B96: Historiador sênior | C96: mês | D96: 8467.8 | E96: 0.8033 | F96: 6802.19 | G96: 0.083 | H96: 702.89 | I96: 0.003 | J96: 24.99 | K96: 0 | L96: 0 | M96: 0 | N96: 0 | O96: 0.0004 | P96: 3.7 | Q96: 0 | R96: 0 | S96: 0.0342 | T96: 289.39 | U96: 0.0012 | V96: 9.98 | W96: 0.925 | X96: 7833.13 | Y96: 16300.93 | Z96: 1030.94
A97: P8195 | B97: Paleontólogo júnior | C97: mês | D97: 2946.19 | E97: 0.8168 | F97: 2406.45 | G97: 0.2386 | H97: 702.89 | I97: 0.0085 | J97: 24.99 | K97: 0 | L97: 0 | M97: 0.0143 | N97: 42.26 | O97: 0.0018 | P97: 5.32 | Q97: 0 | R97: 0 | S97: 0.0982 | T97: 289.39 | U97: 0.0034 | V97: 9.98 | W97: 1.1816 | X97: 3481.28 | Y97: 6427.47 | Z97: 1074.83
A98: P8196 | B98: Paleontólogo pleno | C98: mês | D98: 3928.26 | E98: 0.8168 | F98: 3208.6 | G98: 0.1789 | H98: 702.89 | I98: 0.0064 | J98: 24.99 | K98: 0 | L98: 0 | M98: 0 | N98: 0 | O98: 0.0014 | P98: 5.32 | Q98: 0 | R98: 0 | S98: 0.0737 | T98: 289.39 | U98: 0.0025 | V98: 9.98 | W98: 1.0797 | X98: 4241.17 | Y98: 8169.43 | Z98: 1032.57
A99: P8197 | B99: Paleontólogo sênior | C99: mês | D99: 5873.81 | E99: 0.8168 | F99: 4797.73 | G99: 0.1197 | H99: 702.89 | I99: 0.0043 | J99: 24.99 | K99: 0 | L99: 0 | M99: 0 | N99: 0 | O99: 0.0009 | P99: 5.32 | Q99: 0 | R99: 0 | S99: 0.0493 | T99: 289.39 | U99: 0.0017 | V99: 9.98 | W99: 0.9926 | X99: 5830.3 | Y99: 11704.11 | Z99: 1032.57
A100: P8198 | B100: Sociólogo júnior | C100: mês | D100: 4060.7 | E100: 0.8033 | F100: 3261.96 | G100: 0.1731 | H100: 702.89 | I100: 0.0062 | J100: 24.99 | K100: 0 | L100: 0 | M100: 0 | N100: 0 | O100: 0.0009 | P100: 3.7 | Q100: 0 | R100: 0 | S100: 0.0713 | T100: 289.39 | U100: 0.0025 | V100: 9.98 | W100: 1.0572 | X100: 4292.91 | Y100: 8353.6 | Z100: 1030.94
A101: P8199 | B101: Sociólogo pleno | C101: mês | D101: 5414.26 | E101: 0.8033 | F101: 4349.28 | G101: 0.1298 | H101: 702.89 | I101: 0.0046 | J101: 24.99 | K101: 0 | L101: 0 | M101: 0 | N101: 0 | O101: 0.0007 | P101: 3.7 | Q101: 0 | R101: 0 | S101: 0.0534 | T101: 289.39 | U101: 0.0018 | V101: 9.98 | W101: 0.9937 | X101: 5380.23 | Y101: 10794.49 | Z101: 1030.95
A102: P8200 | B102: Sociólogo sênior | C102: mês | D102: 8587.73 | E102: 0.8033 | F102: 6898.53 | G102: 0.0818 | H102: 702.89 | I102: 0.0029 | J102: 24.99 | K102: 0 | L102: 0 | M102: 0 | N102: 0 | O102: 0.0004 | P102: 3.7 | Q102: 0 | R102: 0 | S102: 0.0337 | T102: 289.39 | U102: 0.0012 | V102: 9.98 | W102: 0.9233 | X102: 7929.47 | Y102: 16517.21 | Z102: 1030.95
A103: Profissionais horistas | Z103: 0
A104: P8250 | B104: Auxiliar - horista | C104: h | D104: 7.07 | E104: 1.1323 | F104: 8 | G104: 0.5452 | H104: 3.85 | I104: 0.0236 | J104: 0.17 | K104: 0.0012 | L104: 0.01 | M104: 0.0975 | N104: 0.69 | O104: 0.0048 | P104: 0.03 | Q104: 0 | R104: 0 | S104: 0.2244 | T104: 1.59 | U104: 0.0077 | V104: 0.05 | W104: 2.0368 | X104: 14.39 | Y104: 21.46 | Z104: 6.39
A105: P8251 | B105: Auxiliar de laboratório - horista | C105: h | D105: 7.82 | E105: 1.1317 | F105: 8.85 | G105: 0.4923 | H105: 3.85 | I105: 0.0213 | J105: 0.17 | K105: 0.0023 | L105: 0.02 | M105: 0.0811 | N105: 0.63 | O105: 0.0028 | P105: 0.02 | Q105: 0 | R105: 0 | S105: 0.2027 | T105: 1.59 | U105: 0.007 | V105: 0.05 | W105: 1.9411 | X105: 15.19 | Y105: 23.01 | Z105: 6.34
A106: P8255 | B106: Engenheiro de projetos júnior - horista | C106: h | D106: 54.55 | E106: 1.1314 | F106: 61.72 | G106: 0.0706 | H106: 3.85 | I106: 0.0025 | J106: 0.14 | K106: 0 | L106: 0 | M106: 0 | N106: 0 | O106: 0.0004 | P106: 0.02 | Q106: 0 | R106: 0 | S106: 0.0291 | T106: 1.59 | U106: 0.001 | V106: 0.05 | W106: 1.235 | X106: 67.37 | Y106: 121.93 | Z106: 5.66
A107: P8256 | B107: Engenheiro de projetos pleno - horista | C107: h | D107: 56.27 | E107: 1.1314 | F107: 63.67 | G107: 0.0684 | H107: 3.85 | I107: 0.0024 | J107: 0.14 | K107: 0 | L107: 0 | M107: 0 | N107: 0 | O107: 0.0004 | P107: 0.02 | Q107: 0 | R107: 0 | S107: 0.0282 | T107: 1.59 | U107: 0.001 | V107: 0.05 | W107: 1.2318 | X107: 69.32 | Y107: 125.59 | Z107: 5.65
A108: P8260 | B108: Laboratorista - horista | C108: h | D108: 10.43 | E108: 1.1317 | F108: 11.81 | G108: 0.3692 | H108: 3.85 | I108: 0.0147 | J108: 0.15 | K108: 0 | L108: 0 | M108: 0.0427 | N108: 0.45 | O108: 0.0021 | P108: 0.02 | Q108: 0 | R108: 0 | S108: 0.152 | T108: 1.59 | U108: 0.0052 | V108: 0.05 | W108: 1.7177 | X108: 17.92 | Y108: 28.35 | Z108: 6.11
A109: P8263 | B109: Motorista de caminhão - horista | C109: h | D109: 10.39 | E109: 1.1326 | F109: 11.77 | G109: 0.3707 | H109: 3.85 | I109: 0.016 | J109: 0.17 | K109: 0 | L109: 0 | M109: 0.0432 | N109: 0.45 | O109: 0.0023 | P109: 0.02 | Q109: 0 | R109: 0 | S109: 0.1526 | T109: 1.59 | U109: 0.0053 | V109: 0.05 | W109: 1.7227 | X109: 17.9 | Y109: 28.29 | Z109: 6.13
A110: P8264 | B110: Motorista de veículo leve - horista | C110: h | D110: 9.2 | E110: 1.1318 | F110: 10.42 | G110: 0.4185 | H110: 3.85 | I110: 0.0181 | J110: 0.17 | K110: 0 | L110: 0 | M110: 0.0581 | N110: 0.53 | O110: 0.0023 | P110: 0.02 | Q110: 0 | R110: 0 | S110: 0.1723 | T110: 1.59 | U110: 0.0059 | V110: 0.05 | W110: 1.8071 | X110: 16.63 | Y110: 25.83 | Z110: 6.21
A111: P8267 | B111: Sondador - horista | C111: h | D111: 9.04 | E111: 1.1316 | F111: 10.23 | G111: 0.4259 | H111: 3.85 | I111: 0.017 | J111: 0.15 | K111: 0 | L111: 0 | M111: 0.0604 | N111: 0.55 | O111: 0.0028 | P111: 0.03 | Q111: 0 | R111: 0 | S111: 0.1753 | T111: 1.59 | U111: 0.006 | V111: 0.05 | W111: 1.819 | X111: 16.45 | Y111: 25.49 | Z111: 6.22
A112: P8270 | B112: Técnico de obras - horista | C112: h | D112: 14.4 | E112: 1.1312 | F112: 16.29 | G112: 0.2675 | H112: 3.85 | I112: 0.0107 | J112: 0.15 | K112: 0 | L112: 0 | M112: 0.011 | N112: 0.16 | O112: 0.0014 | P112: 0.02 | Q112: 0 | R112: 0 | S112: 0.1101 | T112: 1.59 | U112: 0.0038 | V112: 0.05 | W112: 1.5358 | X112: 22.11 | Y112: 36.51 | Z112: 5.82
A113: Fonte: FGV IBRE

Sheet CPU-VEICULO_PickUp
A5: Composição de Preços de Locação de Veículo tipo pick-up
B6: Data de atualização: | C6: 2024-01-22 | E6: CV | F6: Média | G6: Mediana | K6: CV | L6: Média | M6: Mediana | V6: CV | W6: Média | X6: Mediana
A7: CODEVASF | E7: =_xlfn.STDEV.S(E10:H10)/AVERAGE(E10:H10) -> 0.09266792266 | F7: =AVERAGE(E10:H10) -> 179935.5 | G7: =MEDIAN(E10:H10) -> 184702 | K7: =_xlfn.STDEV.S(L9:S9)/AVERAGE(L9:S9) -> 0.2095249415 | L7: =AVERAGE(L9:S9) -> 31.09571429 | M7: =MEDIAN(L9:S9) -> 30.16 | V7: =_xlfn.STDEV.S(W9:AD9)/AVERAGE(W9:AD9) -> 0.1324098854 | W7: =AVERAGE(W9:AD9) -> 430.6009375 | X7: =MEDIAN(W9:AD9) -> 437.31625
A8: OBS: Preço sem BDI e sem motorista BDI= | E8: Preço FIPE | J8: PRODUTO | K8: MENOR (MÉDIA, MEDIANA) | L8: COT. 1 | M8: COT. 2 | N8: COT. 3 | O8: COT. 4 | P8: COT. 5 | Q8: COT. 6 | R8: COT. 7 | S8: COT. 8 | U8: PRODUTO | V8: MENOR (MÉDIA, MEDIANA) | W8: COT. 1 | X8: COT. 2 | Y8: COT. 3 | Z8: COT. 4 | AA8: COT. 5 | AB8: COT. 6 | AC8: COT. 7 | AD8: COT. 8
A9: Veículo tipo pick-up, cabine dupla - 2.0 16V 4x4 diesel Aut. | E9: Toro Ultra 2.0 16V 4x4 TB Diesel Aut. | F9: Toro Freedom 2.0 16V 4x4 TB Diesel Aut. | G9: Toro Volcano 2.0 16V 4x4 TB Diesel Aut. | H9: Toro Ranch 2.0 16V 4x4 TB Diesel Aut. | J9: LUBRIFICANTE 5W30 | K9: =SMALL(L7:M7,1) -> 30.16 | L9: 32.27 | M9: 28.9 | N9: 30.16 | O9: 37.7 | P9: 39.99 | Q9: 20.25 | R9: 28.4 | U9: Pneu 225/65 R17 | V9: =SMALL(W7:X7,1) -> 430.6009375 | W9: =1661.85/4 -> 415.4625 | X9: =1940.9/4 -> 485.225 | Y9: 399.88 | Z9: 330.46 | AA9: 479.6 | AB9: 386.23 | AC9: 459.17 | AD9: 488.78
B10: Custo Mensal (R$): | C10: =C51 -> 7163.790168 | E10: 193030 | F10: 157308 | G10: 177450 | H10: 191954
B11: Custo Diária (R$): | C11: =C10/22 -> 325.6268258
B12: Custo Horário (R$): | C12: =C10/176 -> 40.70335323
A13: A | B13: Depreciação mensal do equipamento
A14: A1 | B14: Preço de Aquisição | C14: =SMALL(F7:G7,1) -> 179935.5
A15: A2 | B15: Tempo previsto de vida útil (meses) | C15: 36
A16: A3 | B16: Previsão de recup. Na venda do bem usado | C16: 0.4
A17: A4 | B17: Custo mensal [A1-(A3xA1)]/A2 | C17: =(C14-(C16*C14))/C15 -> 2998.925
A18: B | B18: Juros pelo Capital empregado
A19: B1 | B19: Taxa mensal de Juros * | C19: =POWER(1+C56,1/12)-1 -> 0.009300823619
A20: B2 | B20: Juros s/depreciação/aluguel (B1xA4) | C20: =C19*C17 -> 27.89247247
A21: C | B21: Conservação e manutenção ** | C21: 0.75
A22: C1 | B22: Taxa de gastos s/a deprec. Inc. seguros (%) | C22: =C21 -> 0.75 | AF22: PREÇO DO DIESEL | AG22: 5.98
A23: C2 | B23: Incidência mensal (C1xA4) | C23: =C22*C17 -> 2249.19375 | AF23: https://precos.petrobras.com.br/sele%C3%A7%C3%A3o-de-estados-diesel
A24: D | B24: Combustível
A25: D1 | B25: Média mensal de quilômetro por veículo | C25: =130*22 -> 2860
A26: D2 | B26: Preço do litro de combustível | C26: =AG22 -> 5.98
A27: D3 | B27: Quilômetros rodados com um litro combustivel | C27: 10
A28: D4 | B28: Combustivel (D1/D3)*D2 | C28: =(C25/C27)*C26 -> 1710.28
A29: E | B29: Lubrificantes
A30: E1 | B30: Quilometragem do Contrato (D1*12) | C30: =C25*36 -> 102960
A31: E2 | B31: Franquia por troca de óleo (km) | C31: 10000
A32: E3 | B32: Preço do litro de óleo | C32: =K9 -> 30.16
A33: E4 | B33: Quantidade de litros de óleo por troca | C33: 5
A34: E5 | B34: Quantidade de dias do Contrato | C34: =365*3 -> 1095
A35: E6 | B35: Lubrificantes E = (E1*E3*E4*30)/E2*E5 | C35: =(C30*C32*C33*30)/(C31*C34) -> 42.53799452
A36: F | B36: Pneus
A37: F1 | B37: Quilometragem do Contrato | C37: =C30 -> 102960
A38: F2 | B38: Vida do Pneu em quilômetros | C38: 45000
A39: F3 | B39: Quantidade de pneus | C39: 5
A40: F4 | B40: Preço do Pneu | C40: =V9 -> 430.6009375
A41: F5 | B41: Quantidade de dias do contrato | C41: =C34 -> 1095
A42: F6 | B42: Pneus = (F1*F3*F4*30)/(F2*F5) | C42: =(C37*C39*C40*30)/(C38*C41) -> 134.9609514
A43: G | B43: Motorista
A44: G1 | B44: Salário com encargos sociais | C44: 0 | J44: https://www.google.com/search?q=lubrificante+5w30&sxsrf=AJOqlzUM514L6uswJHb1jIGpGgXchTtV5A:1677092590843&source=lnms&tbm=shop&sa=X&sqi=2&ved=
A45: H | B45: Custo Mensal
B46: Sem Motorista (A4+B2+C2+D4+E6+F6) | C46: =C17+C20+C23+C28+C35+C42 -> 7163.790168
B47: Com Motorista (A4+B2+C2+D4+E6+F6+G1) | C47: =C17+C20+C23+C28+C35+C42+C44 -> 7163.790168
A48: I | B48: Custo Direto p/ km Rodado
B49: Sem Motorista | C49: =C46/C25 -> 2.504821737
B50: Com Motorista | C50: =C47/C25 -> 2.504821737
A51: J | B51: Preço cobrado sem BDI | C51: =C46*(1+C8) -> 7163.790168
A52: J1 | B52: Sem Motorista | C52: =C51 -> 7163.790168
A53: J2 | B53: Com Motorista | C53: =C47 -> 7163.790168 | T53: https://www.google.com/search?q=pneu+225%2F65+R17&sa=X&biw=1600&bih=757&tbm=shop&sxsrf=AJOqlzWsb-d4PS1_OUOEhKmRc2RbtSg3RQ%3A1677092596279&ei=9Gb2Y9K5ENTa5OUPvLykGA&ved=0ahUKEwjSg9Pj6Kn9AhVULbkGHTweCQMQ4dUDCAg&uact=5&oq=pneu+225%2F65+R17&gs_lcp=Cgtwcm9kdWN0cy1jYxADMgsIABCABBCxAxCDATIFCAAQgAQyBwgAEIAEEAoyBwgAEIAEEAoyBwgAEIAEEAoyBwgAEIAEEAoyBwgAEIAEEAoyBQgAEIAEMgcIABCABBAKMgcIABCABBAKOgQIIxAnOgQIABBDSgQIQRgAUABYoTJgqUBoAHAAeACAAdIFiAGUKZIBDTAuMi42LjIuMi4yLjGYAQCgAQHAAQE&sclient=products-cc
B55: OBSERVAÇÕES:
A56: * | B56: Calculado com base na taxa SELIC JANEIRO/2024: | C56: 0.1175
B57: Taxa de Juros Selic — Português (Brasil) (www.gov.br)
A58: ** | B58: Conservação e manutenção - é calculado com o uso de um coeficiente multiplicador "k", conforme tabela abaixo, sobre a
B59: depreciação mensal do equipamento (Item A da planilha de composição de preços). Os valores de K são fornecidos por
B60: fabricantes.
B61: Metodologia conforme a bibliografia "Como Preparar Orçamentos de Obras", 3 edição, Aldo Dórea Mattos, 2019.

Sheet CPU HOSPEDAGEM
B2: Engenharia Consultiva da Codevasf
B3: CPU - HOSPEDAGEM EQUIPE DE CAMPO (4 PESSOAS/MÊS) | D3: Código/Referencia
B4: ALUGUEL | C4: 3074.56 | D4: F020003334/EMBASA
B5: Aquisição de Mobiliário | C5: =43.89*C16 -> 175.56 | D5: B8954/DNIT
B6: Material de limpeza e diarista | C6: =126.93+(123*8) -> 1110.93 | D6: 10563/ORSE - E200300131/EMBASA
B7: manutenção da casa alugada - Serviços Gerais/Vigia | C7: 2841.56 | D7: 41096/SINAPI
B8: Energia | C8: 180 | D8: 10555/ORSE
B9: Água | C9: 394.99 | D9: 10554/ORSE
B10: telefone/Internet | C10: =154.99+89 -> 243.99 | D10: 10557/10558/ORSE
B11: IPTU (mês) | C11: =(C4*0.5)/12 -> 128.1066667
B12: Despesas Gerais - 10% | C12: =SUM(C4:C11)*0.1 -> 814.9696667
B13: Custo Mensal: | C13: =SUM(C4:C12) -> 8964.666333
B14: Custo Mensal por pessoa: | C14: =C13/C16 -> 2241.166583
B15: Custo diário por pessoa: | C15: =C14/22 -> 101.8712083
B16: número de pessoas: | C16: 4
B17: Alimentação: | C17: 87 | D17: Tabela Diária Codevasf
B19: Diária Total (alimentação + hospedagem): | C19: =C15+C17 -> 188.8712083

Sheet Cotação Voos
A1: COTAÇÕES - IDA DIA 04/11/2024 E VOLTA DIA 08/11/2024
A2: Localidade: | B2: Salvador
A4: Origem | B4: Destino
A5: BSB | B5: =B2 -> Salvador | C5: Cia 1 | D5: Cia 2 | E5: Cia 3 | F5: Média
C6: 866 | D6: 914 | E6: 928 | F6: =AVERAGE(C6:E6) -> 902.6666667
A31: SP | B31: =B2 -> Salvador | C31: Cia 1 | D31: Cia 2 | E31: Cia 3 | F31: Média
C32: 791 | D32: 801 | E32: 804 | F32: =AVERAGE(C32:E32) -> 798.6666667
A57: CURITIBA | B57: =B2 -> Salvador | C57: Cia 1 | D57: Cia 2 | E57: Cia 3 | F57: Média
C58: 750 | D58: 750 | E58: 2834 | F58: =AVERAGE(C58:E58) -> 1444.666667
A84: MANAUS | B84: =B2 -> Salvador | C84: Cia 1 | D84: Cia 2 | E84: Cia 3 | F84: Média
C85: 1042 | D85: 1043 | E85: 1102 | F85: =AVERAGE(C85:E85) -> 1062.333333
A108: VALOR ADOTADO: | C108: =AVERAGE(F6:F94) -> 1052.083333

Sheet COT. VANT (hidden)
A2: COTAÇÃO ORÇAMENTÁRIA DE LEVANTAMENTO PLANIALTIMÉTRICO POR MEIO DE VANT PARA ÁREA NA CIDADE DE PINDARÉ-MIRIM-MA
A3: MÊS/ANO DE REFERÊNCIA | B3: ÁREA DO PROJETO [ha] | C3: EMPRESA | D3: LOCALIDADE | E3: WEBSITE | F3: CONTATO | G3: AVALIAÇÃO TÉCNICA DA PROPOSTA | H3: PREÇO | I3: PREÇO UNITÁRIO | J3: RELAÇÃO CUSTO-BENEFÍCIO
A4: 2022-09-01 | B4: 50 | C4: DRONES SOLUTION | D4: SALVADOR-BA | E4: http://www.dronessolution.com.br/ | F4: contato@dronessolution.com.br | G4: SATISFATÓRIA | H4: 9800 | I4: =(H4/B4) -> 196 | J4: A
A5: 2022-09-01 | B5: 50 | C5: ERG | D5: BELO HORIZONTE-MG | E5: http://www.ergbh.com.br/ | F5: comercial@ergbh.com.br | G5: SATISFATÓRIA | H5: 13240.5 | I5: =(H5/B5) -> 264.81 | J5: B
A6: 2022-09-01 | B6: 50 | C6: CEPEMAR | D6: VITÓRIA-ES | E6: http://www.cepemar.com.br/ | F6: comercial@cepemar.com.br | G6: SATISFATÓRIA | H6: 63000 | I6: =(H6/B6) -> 1260 | J6: C
A8: Observações | B8: 1. Na cotação acima já estão iclusos: Planejamento Aerotogramétrico, Voo Aerotoforamétrico, Apoio de Campo, Aerotriangulação, Restituição, MDT, MDS, Ortofotos, Edição/Revisão e Entrega Final. | G8: CV com todos valores: | H8: =STDEVA(H4:H6)/AVERAGE(H4:H6) -> 1.038054932
B9: 2. INCONCLUSIVA: não apresentou o orçamento de forma detalhada. | G9: CV tirando o maior valor: | H9: =STDEVA(H4:H5)/AVERAGE(H4:H5) -> 0.2111760492
B10: 3. SATISFATÓRIA: apresentou, no mínimo, os requisitos básicos de um orçamento. | G10: Média tirando o maior valor: | H10: =AVERAGE(H4:H5) -> 11520.25 | I10: Valor para a área de 65ha
B11: 4-Para o valor do serviço de Vant, considerou-se a média tirando o maior valor das cotações recebidas, pois o CV (coeficiente de variação) está muito elevado com as 3 cotaçoes.
B12: 5-As cotações recebidas foram utilizadas para o serviço de levantamento do Ramal do Manga no Amapá, referente a um trecho de 6,5km de rodovia, com área total estimadade de 65ha.
B13: Dessa forma, para a cotação representativa deste serviço, realizou-se a parametrização proporcional a área de estudo do serviço a ser realizado.
B15: Portanto:
C16: =I10 -> Valor para a área de 65ha | D16: =H10 -> 11520.25
C17: Valor unitário para a área de 1ha | D17: =D16/65 -> 177.2346154
